Workbook

Sheet Borçlanma ve Diğer Araç İhracı
A1: 2017 YILI İZAHNAME/İHRAÇ BELGESİ ONAYLANAN BORÇLANMA VE DİĞER SERMAYE PİYASASI ARAÇLARI ÖZET DURUM TABLOSU
A2: Sıra | B2: Şirket Adı | C2: Grubu | D2: Sermaye Piyasası Aracının Türü | E2: İzahname/İhraç Belgesi Başvuru Tarihi | F2: İşlemden Kaldırma/Olumsuz Sonuçlanma Tarihi | G2: İzahname/ihraç Belgesi Kurul Kararı Tarihi | H2: Satış Yöntemi | I2: Yurtiçi İhraç Limiti Nominal Tutar (TL) | J2: Yurtiçi İhraç Limiti Nominal Tutar ABD Doları Karşılığı* | K2: Yurtiçi Satışı Gerçekleşen Nominal Tutar (TL) | L2: Yurtiçi Satışa Hazır Nominal Tutar (TL) | M2: Yurtdışı İhraç Limiti Nominal Tutar | N2: Yurtdışı İhraç Limiti Para Birimi | O2: Yurtdışı Tertip İhraç Belgesi Verilen Nominal Tutar | P2: Yurtdışı Satışa Hazır Nominal Tutar | Q2: Yurtdışı Satışı Gerçekleşen Nominal Tutar (TL)**
A3: 1 | B3: Güven Varlık Yönetimi A.Ş. | C3: Finansal Kurum | D3: Borçlanma Aracı | E3: 2016-12-14 | F3: - | G3: 2017-01-06 | H3: Nitelikli Yatırımcı | I3: 200,000,000.00 | J3: 55,250,145.03 | K3: 194,170,000.00 | L3: =Table5402945[[#This Row],[Yurtiçi İhraç Limiti Nominal Tutar (TL)]]-Table5402945[[#This Row],[Yurtiçi Satışı Gerçekleşen Nominal Tutar (TL)]] -> 5,830,000.00
A4: 2 | B4: Aktif Yatırım Bankası A.Ş. | C4: Banka | D4: Borçlanma Aracı | E4: 2016-01-06 | F4: - | G4: 2017-01-13 | H4: Halka Arz | I4: 200,000,000.00 | J4: 52,545,846.25 | K4: 200,000,000.00 | L4: =Table5402945[[#This Row],[Yurtiçi İhraç Limiti Nominal Tutar (TL)]]-Table5402945[[#This Row],[Yurtiçi Satışı Gerçekleşen Nominal Tutar (TL)]] -> 0.00
A5: 3 | B5: Halk Yatırım Menkul Değerler A.Ş. | C5: Finansal Kurum | D5: Borçlanma Aracı | E5: 2016-12-29 | F5: - | G5: 2017-01-13 | H5: Nitelikli Yatırımcı | I5: 300,000,000.00 | J5: 78,818,769.38 | K5: 300,000,000.00 | L5: =Table5402945[[#This Row],[Yurtiçi İhraç Limiti Nominal Tutar (TL)]]-Table5402945[[#This Row],[Yurtiçi Satışı Gerçekleşen Nominal Tutar (TL)]] -> 0.00
A6: 4 | B6: Sümer Faktoring A.Ş. | C6: Finansal Kurum | D6: Borçlanma Aracı | E6: 2016-11-01 | F6: - | G6: 2017-01-26 | H6: Nitelikli Yatırımcı | I6: 51,000,000.00 | J6: 13,277,100.91 | K6: 51,000,000.00 | L6: =Table5402945[[#This Row],[Yurtiçi İhraç Limiti Nominal Tutar (TL)]]-Table5402945[[#This Row],[Yurtiçi Satışı Gerçekleşen Nominal Tutar (TL)]] -> 0.00
A7: 5 | B7: Türkiye Sınai Kalkınma Bankası A.Ş. | C7: Banka | D7: Borçlanma Aracı | E7: 2016-11-28 | F7: - | G7: 2017-01-26 | H7: Yurt Dışı | M7: 500,000,000.00 | N7: ABD Doları | O7: 300,000,000.00 | P7: =Table5402945[[#This Row],[Yurtdışı İhraç Limiti Nominal Tutar]]-Table5402945[[#This Row],[Yurtdışı Tertip İhraç Belgesi Verilen Nominal Tutar]] -> 200,000,000.00 | Q7: 1,133,610,000.00
A8: 6 | B8: Şeker Yatırım Menkul Değerler A.Ş. | C8: Finansal Kurum | D8: Borçlanma Aracı | E8: 2016-11-30 | F8: - | G8: 2017-01-26 | H8: Halka Arz/Tahsisli/Nitelikli Yatırımcı | I8: 100,000,000.00 | J8: 26,033,531.19 | K8: 25,000,000.00 | L8: =Table5402945[[#This Row],[Yurtiçi İhraç Limiti Nominal Tutar (TL)]]-Table5402945[[#This Row],[Yurtiçi Satışı Gerçekleşen Nominal Tutar (TL)]] -> 75,000,000.00
A9: 7 | B9: Nurol Yatırım Bankası A.Ş. | C9: Banka | D9: Borçlanma Aracı | E9: 2016-12-07 | F9: - | G9: 2017-01-26 | H9: Nitelikli Yatırımcı | I9: 186,368,750.00 | J9: 48,518,366.66 | K9: 186,330,000.00 | L9: =Table5402945[[#This Row],[Yurtiçi İhraç Limiti Nominal Tutar (TL)]]-Table5402945[[#This Row],[Yurtiçi Satışı Gerçekleşen Nominal Tutar (TL)]] -> 38,750.00
A10: 8 | B10: İş Yatırım Menkul Değerler A.Ş. | C10: Finansal Kurum | D10: Borçlanma Aracı | E10: 2016-12-21 | F10: - | G10: 2017-01-26 | H10: Tahsisli/Nitelikli Yatırımcı | I10: 2,500,000,000.00 | J10: 650,838,279.70 | K10: 2,496,495,000.00 | L10: =Table5402945[[#This Row],[Yurtiçi İhraç Limiti Nominal Tutar (TL)]]-Table5402945[[#This Row],[Yurtiçi Satışı Gerçekleşen Nominal Tutar (TL)]] -> 3,505,000.00
A11: 9 | B11: T.C. Ziraat Bankası A.Ş. | C11: Banka | D11: Borçlanma Aracı | E11: 2016-12-23 | F11: - | G11: 2017-01-26 | H11: Yurt Dışı | M11: 4,000,000,000.00 | N11: ABD Doları | O11: 1,144,866,412.03 | P11: =Table5402945[[#This Row],[Yurtdışı İhraç Limiti Nominal Tutar]]-Table5402945[[#This Row],[Yurtdışı Tertip İhraç Belgesi Verilen Nominal Tutar]] -> 2,855,133,587.97 | Q11: 4,326,514,500.00
A12: 10 | B12: IC İçtaş Enerji Yatırım Holding A.Ş. | C12: Reel Sektör | D12: Borçlanma Aracı | E12: 2016-12-23 | F12: - | G12: 2017-01-26 | H12: Nitelikli Yatırımcı | I12: 300,000,000.00 | J12: 78,100,593.56 | K12: 0.00 | L12: =Table5402945[[#This Row],[Yurtiçi İhraç Limiti Nominal Tutar (TL)]]-Table5402945[[#This Row],[Yurtiçi Satışı Gerçekleşen Nominal Tutar (TL)]] -> 300,000,000.00
A13: 11 | B13: Başer Faktoring A.Ş. | C13: Finansal Kurum | D13: Borçlanma Aracı | E13: 2016-12-27 | F13: - | G13: 2017-01-26 | H13: Nitelikli Yatırımcı | I13: 75,000,000.00 | J13: 19,525,148.39 | K13: 26,388,000.00 | L13: =Table5402945[[#This Row],[Yurtiçi İhraç Limiti Nominal Tutar (TL)]]-Table5402945[[#This Row],[Yurtiçi Satışı Gerçekleşen Nominal Tutar (TL)]] -> 48,612,000.00
A14: 12 | B14: Şeker Faktoring A.Ş. | C14: Finansal Kurum | D14: Borçlanma Aracı | E14: 2016-12-27 | F14: - | G14: 2017-01-26 | H14: Halka Arz/Tahsisli/Nitelikli Yatırımcı | I14: 95,000,000.00 | J14: 24,731,854.63 | K14: 95,000,000.00 | L14: =Table5402945[[#This Row],[Yurtiçi İhraç Limiti Nominal Tutar (TL)]]-Table5402945[[#This Row],[Yurtiçi Satışı Gerçekleşen Nominal Tutar (TL)]] -> 0.00
A15: 13 | B15: Türkiye Halk Bankası A.Ş. | C15: Banka | D15: Borçlanma Aracı | E15: 2017-01-02 | F15: - | G15: 2017-01-26 | H15: Halka Arz/Tahsisli/Nitelikli Yatırımcı | I15: 6,000,000,000.00 | J15: 1,562,011,871.29 | K15: 5,983,500,000.00 | L15: =Table5402945[[#This Row],[Yurtiçi İhraç Limiti Nominal Tutar (TL)]]-Table5402945[[#This Row],[Yurtiçi Satışı Gerçekleşen Nominal Tutar (TL)]] -> 16,500,000.00
A16: 14 | B16: Ziraat Finansal Kiralama A.Ş. | C16: Finansal Kurum | D16: Borçlanma Aracı | E16: 2017-01-09 | F16: - | G16: 2017-01-26 | H16: Tahsisli/Nitelikli Yatırımcı | I16: 300,000,000.00 | J16: 78,100,593.56 | K16: 175,000,000.00 | L16: =Table5402945[[#This Row],[Yurtiçi İhraç Limiti Nominal Tutar (TL)]]-Table5402945[[#This Row],[Yurtiçi Satışı Gerçekleşen Nominal Tutar (TL)]] -> 125,000,000.00
A17: 15 | B17: Zorlu Enerji Elektrik Üretim A.Ş. | C17: Reel Sektör | D17: Borçlanma Aracı | E17: 2016-12-13 | F17: - | G17: 2017-02-03 | H17: Nitelikli Yatırımcı | I17: 280,000,000.00 | J17: 74,688,575.32 | K17: 265,400,000.00 | L17: =Table5402945[[#This Row],[Yurtiçi İhraç Limiti Nominal Tutar (TL)]]-Table5402945[[#This Row],[Yurtiçi Satışı Gerçekleşen Nominal Tutar (TL)]] -> 14,600,000.00
A18: 16 | B18: Türkiye Garanti Bankası A.Ş. | C18: Banka | D18: Borçlanma Aracı | E18: 2016-12-28 | F18: - | G18: 2017-02-03 | H18: Yurt Dışı | M18: 6,000,000,000.00 | N18: ABD Doları | O18: 1,275,000,000.00 | P18: =Table5402945[[#This Row],[Yurtdışı İhraç Limiti Nominal Tutar]]-Table5402945[[#This Row],[Yurtdışı Tertip İhraç Belgesi Verilen Nominal Tutar]] -> 4,725,000,000.00 | Q18: 4,817,842,500.00
A19: 17 | B19: Vakıf Faktoring A.Ş. | C19: Finansal Kurum | D19: Borçlanma Aracı | E19: 2017-01-04 | F19: - | G19: 2017-02-03 | H19: Tahsisli/Nitelikli Yatırımcı | I19: 300,000,000.00 | J19: 80,023,473.55 | K19: 300,000,000.00 | L19: =Table5402945[[#This Row],[Yurtiçi İhraç Limiti Nominal Tutar (TL)]]-Table5402945[[#This Row],[Yurtiçi Satışı Gerçekleşen Nominal Tutar (TL)]] -> 0.00
A20: 18 | B20: Türkiye İş Bankası A.Ş. | C20: Banka | D20: Borçlanma Aracı | E20: 2017-01-09 | F20: - | G20: 2017-02-03 | H20: Yurt Dışı | M20: 5,000,000,000.00 | N20: ABD Doları | O20: 1,891,584,740.00 | P20: =Table5402945[[#This Row],[Yurtdışı İhraç Limiti Nominal Tutar]]-Table5402945[[#This Row],[Yurtdışı Tertip İhraç Belgesi Verilen Nominal Tutar]] -> 3,108,415,260.00 | Q20: 7,147,681,040.00
A21: 19 | B21: İş Finansal Kiralama A.Ş | C21: Finansal Kurum | D21: Borçlanma Aracı | E21: 2017-01-17 | F21: - | G21: 2017-02-03 | H21: Nitelikli Yatırımcı | I21: 2,500,000,000.00 | J21: 666,862,279.60 | K21: 2,287,593,528.00 | L21: =Table5402945[[#This Row],[Yurtiçi İhraç Limiti Nominal Tutar (TL)]]-Table5402945[[#This Row],[Yurtiçi Satışı Gerçekleşen Nominal Tutar (TL)]] -> 212,406,472.00
A22: 20 | B22: Deniz Finansal Kiralama A.Ş. | C22: Finansal Kurum | D22: Borçlanma Aracı | E22: 2017-01-23 | F22: - | G22: 2017-02-03 | H22: Nitelikli Yatırımcı | I22: 784,000,000.00 | J22: 209,128,010.88 | K22: 784,000,000.00 | L22: =Table5402945[[#This Row],[Yurtiçi İhraç Limiti Nominal Tutar (TL)]]-Table5402945[[#This Row],[Yurtiçi Satışı Gerçekleşen Nominal Tutar (TL)]] -> 0.00
A23: 21 | B23: Aktif Yatırım Bankası A.Ş. | C23: Banka | D23: Borçlanma Aracı | E23: 2016-03-31 | F23: - | G23: 2017-02-10 | H23: Nitelikli Yatırımcı | I23: 100,000,000.00 | J23: 27,162,841.23 | K23: 25,000,000.00 | L23: =Table5402945[[#This Row],[Yurtiçi İhraç Limiti Nominal Tutar (TL)]]-Table5402945[[#This Row],[Yurtiçi Satışı Gerçekleşen Nominal Tutar (TL)]] -> 75,000,000.00
A24: 22 | B24: Fibabanka A.Ş. | C24: Banka | D24: Borçlanma Aracı | E24: 2017-01-05 | F24: - | G24: 2017-02-10 | H24: Yurt Dışı | M24: 350,000,000.00 | N24: ABD Doları | O24: 200,000,000.00 | P24: =Table5402945[[#This Row],[Yurtdışı İhraç Limiti Nominal Tutar]]-Table5402945[[#This Row],[Yurtdışı Tertip İhraç Belgesi Verilen Nominal Tutar]] -> 150,000,000.00 | Q24: 0.00
A25: 23 | B25: Yapı Kredi Yatırım Menkul Değerler A.Ş. | C25: Finansal Kurum | D25: Borçlanma Aracı | E25: 2017-01-06 | F25: - | G25: 2017-02-10 | H25: Tahsisli/Nitelikli Yatırımcı | I25: 1,000,000,000.00 | J25: 271,628,412.33 | K25: 985,140,000.00 | L25: =Table5402945[[#This Row],[Yurtiçi İhraç Limiti Nominal Tutar (TL)]]-Table5402945[[#This Row],[Yurtiçi Satışı Gerçekleşen Nominal Tutar (TL)]] -> 14,860,000.00
A26: 24 | B26: Ulusal Faktoring A.Ş. | C26: Finansal Kurum | D26: Borçlanma Aracı | E26: 2017-01-06 | F26: - | G26: 2017-02-10 | H26: Nitelikli Yatırımcı | I26: 200,000,000.00 | J26: 54,325,682.47 | K26: 81,700,000.00 | L26: =Table5402945[[#This Row],[Yurtiçi İhraç Limiti Nominal Tutar (TL)]]-Table5402945[[#This Row],[Yurtiçi Satışı Gerçekleşen Nominal Tutar (TL)]] -> 118,300,000.00
A27: 25 | B27: T.C. Ziraat Bankası A.Ş | C27: Banka | D27: Borçlanma Aracı | E27: 2017-01-11 | F27: - | G27: 2017-02-10 | H27: Halka Arz/Tahsisli/Nitelikli Yatırımcı | I27: 20,000,000,000.00 | J27: 5,432,568,246.64 | K27: 10,315,700,000.00 | L27: =Table5402945[[#This Row],[Yurtiçi İhraç Limiti Nominal Tutar (TL)]]-Table5402945[[#This Row],[Yurtiçi Satışı Gerçekleşen Nominal Tutar (TL)]] -> 9,684,300,000.00
A28: 26 | B28: Korteks Mensucat Sanayi ve Ticaret A.Ş. | C28: Reel Sektör | D28: Borçlanma Aracı | E28: 2017-01-20 | F28: - | G28: 2017-02-10 | H28: Nitelikli Yatırımcı | I28: 400,000,000.00 | J28: 108,651,364.93 | K28: 375,260,000.00 | L28: =Table5402945[[#This Row],[Yurtiçi İhraç Limiti Nominal Tutar (TL)]]-Table5402945[[#This Row],[Yurtiçi Satışı Gerçekleşen Nominal Tutar (TL)]] -> 24,740,000.00
A29: 27 | B29: Fibabanka A.Ş. | C29: Banka | D29: Borçlanma Aracı | E29: 2017-01-19 | F29: - | G29: 2017-02-17 | H29: Tahsisli/Nitelikli Yatırımcı | I29: 2,800,000,000.00 | J29: 762,361,141.36 | K29: 2,360,530,000.00 | L29: =Table5402945[[#This Row],[Yurtiçi İhraç Limiti Nominal Tutar (TL)]]-Table5402945[[#This Row],[Yurtiçi Satışı Gerçekleşen Nominal Tutar (TL)]] -> 439,470,000.00
A30: 28 | B30: Vakıf Finansal Kiralama A.Ş | C30: Finansal Kurum | D30: Borçlanma Aracı | E30: 2017-01-20 | F30: - | G30: 2017-02-17 | H30: Tahsisli/Nitelikli Yatırımcı | I30: 200,000,000.00 | J30: 54,454,367.24 | K30: 200,000,000.00 | L30: =Table5402945[[#This Row],[Yurtiçi İhraç Limiti Nominal Tutar (TL)]]-Table5402945[[#This Row],[Yurtiçi Satışı Gerçekleşen Nominal Tutar (TL)]] -> 0.00
A31: 29 | B31: MLP Sağlık Hizmetleri A.Ş. | C31: Reel Sektör | D31: Borçlanma Aracı | E31: 2017-01-26 | F31: - | G31: 2017-02-17 | H31: Nitelikli Yatırımcı | I31: 340,000,000.00 | J31: 92,572,424.31 | K31: 40,000,000.00 | L31: =Table5402945[[#This Row],[Yurtiçi İhraç Limiti Nominal Tutar (TL)]]-Table5402945[[#This Row],[Yurtiçi Satışı Gerçekleşen Nominal Tutar (TL)]] -> 300,000,000.00
A32: 30 | B32: KT Kira Sertifikaları Varlık Kiralama A.Ş. | C32: Finansal Kurum | D32: Kira Sertifikası | E32: 2017-02-02 | F32: - | G32: 2017-02-24 | H32: Tahsisli/Nitelikli Yatırımcı | I32: 2,000,000,000.00 | J32: 559,393,617.32 | K32: 2,000,000,000.00 | L32: =Table5402945[[#This Row],[Yurtiçi İhraç Limiti Nominal Tutar (TL)]]-Table5402945[[#This Row],[Yurtiçi Satışı Gerçekleşen Nominal Tutar (TL)]] -> 0.00
A33: 31 | B33: Ak Yatırım Menkul Değerler A.Ş. | C33: Finansal Kurum | D33: Borçlanma Aracı | E33: 2017-01-24 | F33: - | G33: 2017-03-03 | H33: Nitelikli Yatırımcı | I33: 550,000,000.00 | J33: 147,524,274.45 | K33: 543,272,000.00 | L33: =Table5402945[[#This Row],[Yurtiçi İhraç Limiti Nominal Tutar (TL)]]-Table5402945[[#This Row],[Yurtiçi Satışı Gerçekleşen Nominal Tutar (TL)]] -> 6,728,000.00
A34: 32 | B34: Türkiye Garanti Bankası A.Ş. | C34: Banka | D34: Borçlanma Aracı | E34: 2017-01-06 | F34: - | G34: 2017-03-10 | H34: Halka Arz/Tahsisli/Nitelikli Yatırımcı | I34: 20,000,000,000.00 | J34: 5,328,786,102.53 | K34: 9,176,515,379.00 | L34: =Table5402945[[#This Row],[Yurtiçi İhraç Limiti Nominal Tutar (TL)]]-Table5402945[[#This Row],[Yurtiçi Satışı Gerçekleşen Nominal Tutar (TL)]] -> 10,823,484,621.00
A35: 33 | B35: Nurol Yatırım Bankası A.Ş. | C35: Banka | D35: Borçlanma Aracı | E35: 2017-02-21 | F35: - | G35: 2017-03-10 | H35: Nitelikli Yatırımcı | I35: 400,000,000.00 | J35: 106,575,722.05 | K35: 399,900,000.00 | L35: =Table5402945[[#This Row],[Yurtiçi İhraç Limiti Nominal Tutar (TL)]]-Table5402945[[#This Row],[Yurtiçi Satışı Gerçekleşen Nominal Tutar (TL)]] -> 100,000.00
A36: 34 | B36: KT Sukuk Varlık Kiralama A.Ş. | C36: Finansal Kurum | D36: Kira Sertifikası | E36: 2016-12-20 | F36: - | G36: 2017-03-23 | H36: Tahsisli/Nitelikli Yatırımcı | I36: 150,000,000.00 | J36: 41,437,608.77 | K36: 100,000,000.00 | L36: =Table5402945[[#This Row],[Yurtiçi İhraç Limiti Nominal Tutar (TL)]]-Table5402945[[#This Row],[Yurtiçi Satışı Gerçekleşen Nominal Tutar (TL)]] -> 50,000,000.00
A37: 35 | B37: Aktif Bank Sukuk Varlık Kiralama A.Ş. | C37: Finansal Kurum | D37: Kira Sertifikası | E37: 2017-01-20 | F37: - | G37: 2017-03-23 | H37: Yurt Dışı | M37: 118,426,500.00 | N37: ABD Doları | O37: 118,000,000.00 | P37: =Table5402945[[#This Row],[Yurtdışı İhraç Limiti Nominal Tutar]]-Table5402945[[#This Row],[Yurtdışı Tertip İhraç Belgesi Verilen Nominal Tutar]] -> 426,500.00 | Q37: 445,886,600.00
A38: 36 | B38: Timur Gayrimenkul Geliştirme Yapı ve Yatırım A.Ş. | C38: Reel Sektör | D38: Borçlanma Aracı | E38: 2017-02-03 | F38: - | G38: 2017-03-23 | H38: Nitelikli Yatırımcı | I38: 150,000,000.00 | J38: 41,437,608.77 | K38: 100,000,000.00 | L38: =Table5402945[[#This Row],[Yurtiçi İhraç Limiti Nominal Tutar (TL)]]-Table5402945[[#This Row],[Yurtiçi Satışı Gerçekleşen Nominal Tutar (TL)]] -> 50,000,000.00
A39: 37 | B39: Yeditepe Faktoring A.Ş. | C39: Finansal Kurum | D39: Borçlanma Aracı | E39: 2017-02-16 | F39: - | G39: 2017-03-23 | H39: Tahsisli/Nitelikli Yatırımcı | I39: 150,000,000.00 | J39: 41,437,608.77 | K39: 101,000,000.00 | L39: =Table5402945[[#This Row],[Yurtiçi İhraç Limiti Nominal Tutar (TL)]]-Table5402945[[#This Row],[Yurtiçi Satışı Gerçekleşen Nominal Tutar (TL)]] -> 49,000,000.00
A40: 38 | B40: Aygaz A.Ş. | C40: Reel Sektör | D40: Borçlanma Aracı | E40: 2017-02-16 | F40: - | G40: 2017-03-23 | H40: Tahsisli/Nitelikli Yatırımcı | I40: 200,000,000.00 | J40: 55,250,145.03 | K40: 135,000,000.00 | L40: =Table5402945[[#This Row],[Yurtiçi İhraç Limiti Nominal Tutar (TL)]]-Table5402945[[#This Row],[Yurtiçi Satışı Gerçekleşen Nominal Tutar (TL)]] -> 65,000,000.00
A41: 39 | B41: Bankpozitif Kredi ve Kalkınma Bankası A.Ş. | C41: Banka | D41: Borçlanma Aracı | E41: 2017-03-01 | F41: - | G41: 2017-03-23 | H41: Tahsisli/Nitelikli Yatırımcı | I41: 400,000,000.00 | J41: 110,500,290.06 | K41: 286,000,000.00 | L41: =Table5402945[[#This Row],[Yurtiçi İhraç Limiti Nominal Tutar (TL)]]-Table5402945[[#This Row],[Yurtiçi Satışı Gerçekleşen Nominal Tutar (TL)]] -> 114,000,000.00
A42: 40 | B42: Toplu Konut İdaresi Başkanlığı | C42: Kamu Kurumu | D42: Gayrimenkul Sertifikası | E42: 2017-03-10 | F42: - | G42: 2017-03-23 | H42: Halka Arz | I42: 239,238,705.00 | J42: 66,089,865.74 | K42: 143,242,425.00 | L42: =Table5402945[[#This Row],[Yurtiçi İhraç Limiti Nominal Tutar (TL)]]-Table5402945[[#This Row],[Yurtiçi Satışı Gerçekleşen Nominal Tutar (TL)]] -> 95,996,280.00
A43: 41 | B43: Aktif Yatırım Bankası A.Ş. Turkcell Varlık Finansmanı Fonu | C43: Fonlar | D43: VDMK | E43: 2017-01-23 | F43: - | G43: 2017-03-31 | H43: Nitelikli Yatırımcı | I43: 100,000,000.00 | J43: 27,452,164.60 | K43: 100,000,000.00 | L43: =Table5402945[[#This Row],[Yurtiçi İhraç Limiti Nominal Tutar (TL)]]-Table5402945[[#This Row],[Yurtiçi Satışı Gerçekleşen Nominal Tutar (TL)]] -> 0.00
A44: 42 | B44: TEB Finansman A.Ş. | C44: Finansal Kurum | D44: Borçlanma Aracı | E44: 2017-02-20 | F44: - | G44: 2017-03-31 | H44: Tahsisli/Nitelikli Yatırımcı | I44: 253,640,000.00 | J44: 69,629,670.30 | K44: 0.00 | L44: =Table5402945[[#This Row],[Yurtiçi İhraç Limiti Nominal Tutar (TL)]]-Table5402945[[#This Row],[Yurtiçi Satışı Gerçekleşen Nominal Tutar (TL)]] -> 253,640,000.00
A45: 43 | B45: Global Yatırım Holding A.Ş. | C45: Reel Sektör | D45: Borçlanma Aracı | E45: 2017-02-24 | F45: - | G45: 2017-03-31 | H45: Nitelikli Yatırımcı | I45: 250,000,000.00 | J45: 68,630,411.51 | K45: 35,000,000.00 | L45: =Table5402945[[#This Row],[Yurtiçi İhraç Limiti Nominal Tutar (TL)]]-Table5402945[[#This Row],[Yurtiçi Satışı Gerçekleşen Nominal Tutar (TL)]] -> 215,000,000.00
A46: 44 | B46: Analiz Faktoring A.Ş. | C46: Finansal Kurum | D46: Borçlanma Aracı | E46: 2017-03-01 | F46: - | G46: 2017-03-31 | H46: Nitelikli Yatırımcı | I46: 40,000,000.00 | J46: 10,980,865.84 | K46: 40,000,000.00 | L46: =Table5402945[[#This Row],[Yurtiçi İhraç Limiti Nominal Tutar (TL)]]-Table5402945[[#This Row],[Yurtiçi Satışı Gerçekleşen Nominal Tutar (TL)]] -> 0.00
A47: 45 | B47: Devir Faktoring A.Ş. | C47: Finansal Kurum | D47: Borçlanma Aracı | E47: 2017-03-08 | F47: - | G47: 2017-03-31 | H47: Nitelikli Yatırımcı | I47: 65,000,000.00 | J47: 17,843,906.99 | K47: 43,000,000.00 | L47: =Table5402945[[#This Row],[Yurtiçi İhraç Limiti Nominal Tutar (TL)]]-Table5402945[[#This Row],[Yurtiçi Satışı Gerçekleşen Nominal Tutar (TL)]] -> 22,000,000.00
A48: 46 | B48: Palmet Enerji A.Ş | C48: Reel Sektör | D48: Borçlanma Aracı | E48: 2017-01-06 | F48: - | G48: 2017-04-07 | H48: Nitelikli Yatırımcı | I48: 150,000,000.00 | J48: 40,241,448.69 | K48: 50,000,000.00 | L48: =Table5402945[[#This Row],[Yurtiçi İhraç Limiti Nominal Tutar (TL)]]-Table5402945[[#This Row],[Yurtiçi Satışı Gerçekleşen Nominal Tutar (TL)]] -> 100,000,000.00
A49: 47 | B49: Otokoç Otomotiv Ticaret ve Sanayi A.Ş. | C49: Reel Sektör | D49: Borçlanma Aracı | E49: 2017-01-23 | F49: - | G49: 2017-04-07 | H49: Tahsisli/Nitelikli Yatırımcı | I49: 200,000,000.00 | J49: 53,655,264.92 | K49: 100,000,000.00 | L49: =Table5402945[[#This Row],[Yurtiçi İhraç Limiti Nominal Tutar (TL)]]-Table5402945[[#This Row],[Yurtiçi Satışı Gerçekleşen Nominal Tutar (TL)]] -> 100,000,000.00
A50: 48 | B50: Vera Varlık Yönetim A.Ş. | C50: Finansal Kurum | D50: Borçlanma Aracı | E50: 2017-03-07 | F50: - | G50: 2017-04-07 | H50: Nitelikli Yatırımcı | I50: 85,000,000.00 | J50: 22,803,487.59 | K50: 50,000,000.00 | L50: =Table5402945[[#This Row],[Yurtiçi İhraç Limiti Nominal Tutar (TL)]]-Table5402945[[#This Row],[Yurtiçi Satışı Gerçekleşen Nominal Tutar (TL)]] -> 35,000,000.00
A51: 49 | B51: Ak Yatırım Menkul Değerler A.Ş. | C51: Finansal Kurum | D51: Borçlanma Aracı | E51: 2017-03-08 | F51: - | G51: 2017-04-07 | H51: Nitelikli Yatırımcı | I51: 600,000,000.00 | J51: 160,965,794.77 | K51: 599,661,000.00 | L51: =Table5402945[[#This Row],[Yurtiçi İhraç Limiti Nominal Tutar (TL)]]-Table5402945[[#This Row],[Yurtiçi Satışı Gerçekleşen Nominal Tutar (TL)]] -> 339,000.00
A52: 50 | B52: Mercedes-Benz Finansman Türk A.Ş. | C52: Finansal Kurum | D52: Borçlanma Aracı | E52: 2017-03-09 | F52: - | G52: 2017-04-07 | H52: Tahsisli/Nitelikli Yatırımcı | I52: 1,000,000,000.00 | J52: 268,276,324.61 | K52: 0.00 | L52: =Table5402945[[#This Row],[Yurtiçi İhraç Limiti Nominal Tutar (TL)]]-Table5402945[[#This Row],[Yurtiçi Satışı Gerçekleşen Nominal Tutar (TL)]] -> 1,000,000,000.00
A53: 51 | B53: Mercedes-Benz Finansman Türk A.Ş. | C53: Finansal Kurum | D53: Borçlanma Aracı | E53: 2017-03-09 | F53: - | G53: 2017-04-07 | H53: Yurt Dışı | M53: 320,000,000.00 | N53: Avro | O53: 0.00 | P53: =Table5402945[[#This Row],[Yurtdışı İhraç Limiti Nominal Tutar]]-Table5402945[[#This Row],[Yurtdışı Tertip İhraç Belgesi Verilen Nominal Tutar]] -> 320,000,000.00 | Q53: 0.00
A54: 52 | B54: Koçtaş Yapı Marketleri Ticaret A.Ş. | C54: Reel Sektör | D54: Borçlanma Aracı | E54: 2017-03-20 | F54: - | G54: 2017-04-07 | H54: Nitelikli Yatırımcı | I54: 150,000,000.00 | J54: 40,241,448.69 | K54: 50,000,000.00 | L54: =Table5402945[[#This Row],[Yurtiçi İhraç Limiti Nominal Tutar (TL)]]-Table5402945[[#This Row],[Yurtiçi Satışı Gerçekleşen Nominal Tutar (TL)]] -> 100,000,000.00
A55: 53 | B55: Türkiye İş Bankası A.Ş. | C55: Banka | D55: İTMK | E55: 2016-08-22 | F55: - | G55: 2017-04-14 | H55: Yurt Dışı | M55: 2,000,000,000.00 | N55: Avro | O55: 0.00 | P55: =Table5402945[[#This Row],[Yurtdışı İhraç Limiti Nominal Tutar]]-Table5402945[[#This Row],[Yurtdışı Tertip İhraç Belgesi Verilen Nominal Tutar]] -> 2,000,000,000.00 | Q55: 0.00
A56: 54 | B56: Türkiye Garanti Bankası A.Ş. | C56: Banka | D56: İTMK | E56: 2017-01-04 | F56: - | G56: 2017-04-14 | H56: Yurt Dışı | M56: 2,000,000,000.00 | N56: Avro | O56: 408,252,789.76 | P56: =Table5402945[[#This Row],[Yurtdışı İhraç Limiti Nominal Tutar]]-Table5402945[[#This Row],[Yurtdışı Tertip İhraç Belgesi Verilen Nominal Tutar]] -> 1,591,747,210.24 | Q56: 1,682,017,500.00
A57: 55 | B57: Bien Yapı Ürünleri Sanayi Turizm ve Ticaret A.Ş. | C57: Reel Sektör | D57: Borçlanma Aracı | E57: 2017-02-13 | F57: - | G57: 2017-04-14 | H57: Tahsisli | I57: 80,000,000.00 | J57: 21,699,622.97 | K57: 80,000,000.00 | L57: =Table5402945[[#This Row],[Yurtiçi İhraç Limiti Nominal Tutar (TL)]]-Table5402945[[#This Row],[Yurtiçi Satışı Gerçekleşen Nominal Tutar (TL)]] -> 0.00
A58: 56 | B58: Yapı Kredi Yatırım Menkul Değerler A.Ş. | C58: Finansal Kurum | D58: Borçlanma Aracı | E58: 2017-02-15 | F58: - | G58: 2017-04-14 | H58: Nitelikli Yatırımcı | I58: 300,000,000.00 | J58: 81,373,586.13 | K58: 299,984,788.00 | L58: =Table5402945[[#This Row],[Yurtiçi İhraç Limiti Nominal Tutar (TL)]]-Table5402945[[#This Row],[Yurtiçi Satışı Gerçekleşen Nominal Tutar (TL)]] -> 15,212.00
A59: 57 | B59: Söktaş Tekstil Sanayi ve Ticaret A.Ş. | C59: Reel Sektör | D59: Borçlanma Aracı | E59: 2017-02-15 | F59: - | G59: 2017-04-14 | H59: Nitelikli Yatırımcı | I59: 40,000,000.00 | J59: 10,849,811.48 | K59: 0.00 | L59: =Table5402945[[#This Row],[Yurtiçi İhraç Limiti Nominal Tutar (TL)]]-Table5402945[[#This Row],[Yurtiçi Satışı Gerçekleşen Nominal Tutar (TL)]] -> 40,000,000.00
A60: 58 | B60: Finans Faktoring A.Ş. | C60: Finansal Kurum | D60: Borçlanma Aracı | E60: 2017-03-10 | F60: - | G60: 2017-04-14 | H60: Tahsisli/Nitelikli Yatırımcı | I60: 254,147,000.00 | J60: 68,936,175.98 | K60: 250,000,000.00 | L60: =Table5402945[[#This Row],[Yurtiçi İhraç Limiti Nominal Tutar (TL)]]-Table5402945[[#This Row],[Yurtiçi Satışı Gerçekleşen Nominal Tutar (TL)]] -> 4,147,000.00
A61: 59 | B61: Yapı Kredi Yatırım Menkul Değerler A.Ş. | C61: Finansal Kurum | D61: Borçlanma Aracı | E61: 2017-04-03 | F61: - | G61: 2017-04-14 | H61: Tahsisli/Nitelikli Yatırımcı | I61: 1,000,000,000.00 | J61: 271,245,287.11 | K61: 979,775,000.00 | L61: =Table5402945[[#This Row],[Yurtiçi İhraç Limiti Nominal Tutar (TL)]]-Table5402945[[#This Row],[Yurtiçi Satışı Gerçekleşen Nominal Tutar (TL)]] -> 20,225,000.00
A62: 60 | B62: Vakıf Varlık Kiralama A.Ş. | C62: Finansal Kurum | D62: Kira Sertifikası | E62: 2017-02-20 | F62: - | G62: 2017-04-21 | H62: Tahsisli/Nitelikli Yatırımcı | I62: 2,000,000,000.00 | J62: 548,591,491.35 | K62: 1,620,000,000.00 | L62: =Table5402945[[#This Row],[Yurtiçi İhraç Limiti Nominal Tutar (TL)]]-Table5402945[[#This Row],[Yurtiçi Satışı Gerçekleşen Nominal Tutar (TL)]] -> 380,000,000.00
A63: 61 | B63: KT Sukuk Varlık Kiralama A.Ş. | C63: Finansal Kurum | D63: Kira Sertifikası | E63: 2017-03-15 | F63: - | G63: 2017-04-21 | H63: Tahsisli/Nitelikli Yatırımcı | I63: 200,000,000.00 | J63: 54,859,149.13 | K63: 50,000,000.00 | L63: =Table5402945[[#This Row],[Yurtiçi İhraç Limiti Nominal Tutar (TL)]]-Table5402945[[#This Row],[Yurtiçi Satışı Gerçekleşen Nominal Tutar (TL)]] -> 150,000,000.00
A64: 62 | B64: Koton Mağazacılık Tekstil Sanayi ve Ticaret A.Ş. | C64: Reel Sektör | D64: Borçlanma Aracı | E64: 2017-03-21 | F64: - | G64: 2017-04-21 | H64: Nitelikli Yatırımcı | I64: 450,000,000.00 | J64: 123,433,085.55 | K64: 55,100,000.00 | L64: =Table5402945[[#This Row],[Yurtiçi İhraç Limiti Nominal Tutar (TL)]]-Table5402945[[#This Row],[Yurtiçi Satışı Gerçekleşen Nominal Tutar (TL)]] -> 394,900,000.00
A65: 63 | B65: Bossa Ticaret ve Sanayi İşletmeleri T.A.Ş. | C65: Reel Sektör | D65: Borçlanma Aracı | E65: 2017-03-22 | F65: - | G65: 2017-04-21 | H65: Tahsisli/Nitelikli Yatırımcı | I65: 50,000,000.00 | J65: 13,714,787.28 | K65: 0.00 | L65: =Table5402945[[#This Row],[Yurtiçi İhraç Limiti Nominal Tutar (TL)]]-Table5402945[[#This Row],[Yurtiçi Satışı Gerçekleşen Nominal Tutar (TL)]] -> 50,000,000.00
A66: 64 | B66: Yapı Kredi Finansal Kiralama A.O. | C66: Finansal Kurum | D66: Borçlanma Aracı | E66: 2017-03-23 | F66: - | G66: 2017-04-21 | H66: Nitelikli Yatırımcı | I66: 2,500,000,000.00 | J66: 685,739,364.18 | K66: 1,325,500,000.00 | L66: =Table5402945[[#This Row],[Yurtiçi İhraç Limiti Nominal Tutar (TL)]]-Table5402945[[#This Row],[Yurtiçi Satışı Gerçekleşen Nominal Tutar (TL)]] -> 1,174,500,000.00
A67: 65 | B67: Ünlü Menkul Değerler A.Ş. | C67: Finansal Kurum | D67: Borçlanma Aracı | E67: 2017-03-23 | F67: - | G67: 2017-04-21 | H67: Nitelikli Yatırımcı | I67: 100,000,000.00 | J67: 27,429,574.57 | K67: 99,991,943.00 | L67: =Table5402945[[#This Row],[Yurtiçi İhraç Limiti Nominal Tutar (TL)]]-Table5402945[[#This Row],[Yurtiçi Satışı Gerçekleşen Nominal Tutar (TL)]] -> 8,057.00
A68: 66 | B68: Aktif Yatırım Bankası A.Ş. | C68: Banka | D68: Borçlanma Aracı | E68: 2017-03-24 | F68: - | G68: 2017-04-21 | H68: Halka Arz/Tahsisli/Nitelikli Yatırımcı | I68: 600,000,000.00 | J68: 164,577,447.40 | K68: 600,000,000.00 | L68: =Table5402945[[#This Row],[Yurtiçi İhraç Limiti Nominal Tutar (TL)]]-Table5402945[[#This Row],[Yurtiçi Satışı Gerçekleşen Nominal Tutar (TL)]] -> 0.00
A69: 67 | B69: Şeker Finansal Kiralama A.Ş. | C69: Finansal Kurum | D69: Borçlanma Aracı | E69: 2017-03-27 | F69: - | G69: 2017-04-21 | H69: Halka Arz/Tahsisli/Nitelikli Yatırımcı | I69: 150,000,000.00 | J69: 41,144,361.85 | K69: 140,000,000.00 | L69: =Table5402945[[#This Row],[Yurtiçi İhraç Limiti Nominal Tutar (TL)]]-Table5402945[[#This Row],[Yurtiçi Satışı Gerçekleşen Nominal Tutar (TL)]] -> 10,000,000.00
A70: 68 | B70: Yapı ve Kredi Bankası A.Ş. | C70: Banka | D70: Borçlanma Aracı | E70: 2017-03-27 | F70: - | G70: 2017-04-21 | H70: Yurt Dışı | M70: 6,000,000,000.00 | N70: ABD Doları | O70: 739,377,338.15 | P70: =Table5402945[[#This Row],[Yurtdışı İhraç Limiti Nominal Tutar]]-Table5402945[[#This Row],[Yurtdışı Tertip İhraç Belgesi Verilen Nominal Tutar]] -> 5,260,622,661.85 | Q70: 2,787,140,700.00
A71: 69 | B71: Gedik Yatırım Menkul Değerler A.Ş. | C71: Finansal Kurum | D71: Borçlanma Aracı | E71: 2017-03-20 | F71: - | G71: 2017-04-28 | H71: Halka Arz/Nitelikli Yatırımcı | I71: 200,000,000.00 | J71: 56,230,319.39 | K71: 105,000,000.00 | L71: =Table5402945[[#This Row],[Yurtiçi İhraç Limiti Nominal Tutar (TL)]]-Table5402945[[#This Row],[Yurtiçi Satışı Gerçekleşen Nominal Tutar (TL)]] -> 95,000,000.00
A72: 70 | B72: Turkish Bank A.Ş. | C72: Banka | D72: Borçlanma Aracı | E72: 2017-03-22 | F72: - | G72: 2017-04-28 | H72: Tahsisli/Nitelikli Yatırımcı | I72: 150,000,000.00 | J72: 42,172,739.54 | K72: 93,000,000.00 | L72: =Table5402945[[#This Row],[Yurtiçi İhraç Limiti Nominal Tutar (TL)]]-Table5402945[[#This Row],[Yurtiçi Satışı Gerçekleşen Nominal Tutar (TL)]] -> 57,000,000.00
A73: 71 | B73: Koç Finansman A.Ş. | C73: Finansal Kurum | D73: Borçlanma Aracı | E73: 2017-03-24 | F73: - | G73: 2017-04-28 | H73: Tahsisli/Nitelikli Yatırımcı | I73: 300,000,000.00 | J73: 84,345,479.08 | K73: 210,000,000.00 | L73: =Table5402945[[#This Row],[Yurtiçi İhraç Limiti Nominal Tutar (TL)]]-Table5402945[[#This Row],[Yurtiçi Satışı Gerçekleşen Nominal Tutar (TL)]] -> 90,000,000.00
A74: 72 | B74: Ereğli Tekstil Turizm Ticaret ve Sanayi A.Ş. | C74: Reel Sektör | D74: Borçlanma Aracı | E74: 2017-03-27 | F74: - | G74: 2017-04-28 | H74: Nitelikli Yatırımcı | I74: 200,000,000.00 | J74: 56,230,319.39 | K74: 173,470,000.00 | L74: =Table5402945[[#This Row],[Yurtiçi İhraç Limiti Nominal Tutar (TL)]]-Table5402945[[#This Row],[Yurtiçi Satışı Gerçekleşen Nominal Tutar (TL)]] -> 26,530,000.00
A75: 73 | B75: Koç Fiat Kredi Finansman A.Ş. | C75: Finansal Kurum | D75: Borçlanma Aracı | E75: 2017-04-03 | F75: - | G75: 2017-04-28 | H75: Nitelikli Yatırımcı | I75: 150,000,000.00 | J75: 42,172,739.54 | K75: 110,000,000.00 | L75: =Table5402945[[#This Row],[Yurtiçi İhraç Limiti Nominal Tutar (TL)]]-Table5402945[[#This Row],[Yurtiçi Satışı Gerçekleşen Nominal Tutar (TL)]] -> 40,000,000.00
A76: 74 | B76: Ziraat Katılım Varlık Kiralama A.Ş. | C76: Finansal Kurum | D76: Kira Sertifikası | E76: 2017-04-03 | F76: - | G76: 2017-04-28 | H76: Tahsisli/Nitelikli Yatırımcı | I76: 1,500,000,000.00 | J76: 421,727,395.41 | K76: 1,000,000,000.00 | L76: =Table5402945[[#This Row],[Yurtiçi İhraç Limiti Nominal Tutar (TL)]]-Table5402945[[#This Row],[Yurtiçi Satışı Gerçekleşen Nominal Tutar (TL)]] -> 500,000,000.00
A77: 75 | B77: ING Bank A.Ş. | C77: Banka | D77: Borçlanma Aracı | E77: 2017-04-18 | F77: - | G77: 2017-04-28 | H77: Nitelikli Yatırımcı | I77: 3,000,000,000.00 | J77: 843,454,790.82 | K77: 0.00 | L77: =Table5402945[[#This Row],[Yurtiçi İhraç Limiti Nominal Tutar (TL)]]-Table5402945[[#This Row],[Yurtiçi Satışı Gerçekleşen Nominal Tutar (TL)]] -> 3,000,000,000.00
A78: 76 | B78: Şekerbank T.A.Ş. | C78: Banka | D78: VTMK | E78: 2017-02-23 | F78: - | G78: 2017-05-09 | H78: Yurt Dışı | M78: 600,000,000.00 | N78: Türk Lirası | O78: 195,000,000.00 | P78: =Table5402945[[#This Row],[Yurtdışı İhraç Limiti Nominal Tutar]]-Table5402945[[#This Row],[Yurtdışı Tertip İhraç Belgesi Verilen Nominal Tutar]] -> 405,000,000.00 | Q78: 192,000,000.00
A79: 77 | B79: Özderici Gayrimenkul Yatırım Ortaklığı A.Ş. | C79: Reel Sektör | D79: Borçlanma Aracı | E79: 2017-03-27 | F79: - | G79: 2017-05-09 | H79: Nitelikli Yatırımcı | I79: 100,000,000.00 | J79: 27,783,180.06 | K79: 0.00 | L79: =Table5402945[[#This Row],[Yurtiçi İhraç Limiti Nominal Tutar (TL)]]-Table5402945[[#This Row],[Yurtiçi Satışı Gerçekleşen Nominal Tutar (TL)]] -> 100,000,000.00
A80: 78 | B80: İş Yatırım Menkul Değerler A.Ş. | C80: Finansal Kurum | D80: Borçlanma Aracı | E80: 2017-04-03 | F80: - | G80: 2017-05-09 | H80: Tahsisli/Nitelikli Yatırımcı | I80: 3,500,000,000.00 | J80: 972,411,302.20 | K80: 3,387,308,000.00 | L80: =Table5402945[[#This Row],[Yurtiçi İhraç Limiti Nominal Tutar (TL)]]-Table5402945[[#This Row],[Yurtiçi Satışı Gerçekleşen Nominal Tutar (TL)]] -> 112,692,000.00
A81: 79 | B81: MNG Faktoring A.Ş. | C81: Finansal Kurum | D81: Borçlanma Aracı | E81: 2017-04-12 | F81: - | G81: 2017-05-09 | H81: Tahsisli/Nitelikli Yatırımcı | I81: 50,000,000.00 | J81: 13,891,590.03 | K81: 0.00 | L81: =Table5402945[[#This Row],[Yurtiçi İhraç Limiti Nominal Tutar (TL)]]-Table5402945[[#This Row],[Yurtiçi Satışı Gerçekleşen Nominal Tutar (TL)]] -> 50,000,000.00
A82: 80 | B82: Deniz Finansal Kiralama A.Ş. | C82: Finansal Kurum | D82: Borçlanma Aracı | E82: 2017-04-26 | F82: - | G82: 2017-05-09 | H82: Nitelikli Yatırımcı | I82: 1,449,500,000.00 | J82: 402,717,195.01 | K82: 1,449,500,000.00 | L82: =Table5402945[[#This Row],[Yurtiçi İhraç Limiti Nominal Tutar (TL)]]-Table5402945[[#This Row],[Yurtiçi Satışı Gerçekleşen Nominal Tutar (TL)]] -> 0.00
A83: 81 | B83: Akbank T.A.Ş. | C83: Banka | D83: İTMK | E83: 2017-03-03 | F83: - | G83: 2017-05-18 | H83: Yurt Dışı | M83: 1,000,000,000.00 | N83: Avro | O83: 286,657,189.36 | P83: =Table5402945[[#This Row],[Yurtdışı İhraç Limiti Nominal Tutar]]-Table5402945[[#This Row],[Yurtdışı Tertip İhraç Belgesi Verilen Nominal Tutar]] -> 713,342,810.64 | Q83: 1,186,056,000.00
A84: 82 | B84: Orfin Finansman A.Ş. | C84: Finansal Kurum | D84: Borçlanma Aracı | E84: 2017-04-20 | F84: - | G84: 2017-05-18 | H84: Nitelikli Yatırımcı | I84: 510,000,000.00 | J84: 140,911,225.93 | K84: 350,000,000.00 | L84: =Table5402945[[#This Row],[Yurtiçi İhraç Limiti Nominal Tutar (TL)]]-Table5402945[[#This Row],[Yurtiçi Satışı Gerçekleşen Nominal Tutar (TL)]] -> 160,000,000.00
A85: 83 | B85: Atılım Faktoring A.Ş. | C85: Finansal Kurum | D85: Borçlanma Aracı | E85: 2017-04-20 | F85: - | G85: 2017-05-18 | H85: Nitelikli Yatırımcı | I85: 40,000,000.00 | J85: 11,051,860.86 | K85: 40,000,000.00 | L85: =Table5402945[[#This Row],[Yurtiçi İhraç Limiti Nominal Tutar (TL)]]-Table5402945[[#This Row],[Yurtiçi Satışı Gerçekleşen Nominal Tutar (TL)]] -> 0.00
A86: 84 | B86: Finansbank A.Ş. | C86: Banka | D86: Borçlanma Aracı | E86: 2017-04-21 | F86: - | G86: 2017-05-18 | H86: Yurt Dışı | M86: 2,000,000,000.00 | N86: ABD Doları | O86: 0.00 | P86: =Table5402945[[#This Row],[Yurtdışı İhraç Limiti Nominal Tutar]]-Table5402945[[#This Row],[Yurtdışı Tertip İhraç Belgesi Verilen Nominal Tutar]] -> 2,000,000,000.00 | Q86: 0.00
A87: 85 | B87: Destek Faktoring A.Ş. | C87: Finansal Kurum | D87: Borçlanma Aracı | E87: 2017-05-05 | F87: - | G87: 2017-05-18 | H87: Nitelikli Yatırımcı | I87: 500,000,000.00 | J87: 138,148,260.71 | K87: 176,000,000.00 | L87: =Table5402945[[#This Row],[Yurtiçi İhraç Limiti Nominal Tutar (TL)]]-Table5402945[[#This Row],[Yurtiçi Satışı Gerçekleşen Nominal Tutar (TL)]] -> 324,000,000.00
A88: 86 | B88: Hayat Varlık Yönetim A.Ş. | C88: Finansal Kurum | D88: Borçlanma Aracı | E88: 2017-03-31 | F88: - | G88: 2017-05-26 | H88: Nitelikli Yatırımcı | I88: 400,000,000.00 | J88: 111,997,760.04 | K88: 142,000,000.00 | L88: =Table5402945[[#This Row],[Yurtiçi İhraç Limiti Nominal Tutar (TL)]]-Table5402945[[#This Row],[Yurtiçi Satışı Gerçekleşen Nominal Tutar (TL)]] -> 258,000,000.00
A89: 87 | B89: Pasha Yatırım Bankası A.Ş. | C89: Banka | D89: Borçlanma Aracı | E89: 2017-04-11 | F89: - | G89: 2017-05-26 | H89: Yurt Dışı | M89: 230,000,000.00 | N89: Türk Lirası | O89: 87,882,500.00 | P89: =Table5402945[[#This Row],[Yurtdışı İhraç Limiti Nominal Tutar]]-Table5402945[[#This Row],[Yurtdışı Tertip İhraç Belgesi Verilen Nominal Tutar]] -> 142,117,500.00 | Q89: 94,467,500.00
A90: 88 | B90: Pasha Yatırım Bankası A.Ş. | C90: Banka | D90: Borçlanma Aracı | E90: 2017-04-11 | F90: - | G90: 2017-05-26 | H90: Tahsisli/Nitelikli Yatırımcı | I90: 500,000,000.00 | J90: 139,997,200.06 | K90: 130,500,000.00 | L90: =Table5402945[[#This Row],[Yurtiçi İhraç Limiti Nominal Tutar (TL)]]-Table5402945[[#This Row],[Yurtiçi Satışı Gerçekleşen Nominal Tutar (TL)]] -> 369,500,000.00
A91: 89 | B91: Doğuş Holding A.Ş. | C91: Reel Sektör | D91: Borçlanma Aracı | E91: 2017-04-25 | F91: - | G91: 2017-05-26 | H91: Tahsisli/Nitelikli Yatırımcı | I91: 500,000,000.00 | J91: 139,997,200.06 | K91: 350,000,000.00 | L91: =Table5402945[[#This Row],[Yurtiçi İhraç Limiti Nominal Tutar (TL)]]-Table5402945[[#This Row],[Yurtiçi Satışı Gerçekleşen Nominal Tutar (TL)]] -> 150,000,000.00
A92: 90 | B92: Huzur Faktoring A.Ş. | C92: Finansal Kurum | D92: Borçlanma Aracı | E92: 2017-04-27 | F92: - | G92: 2017-05-26 | H92: Nitelikli Yatırımcı | I92: 70,000,000.00 | J92: 19,599,608.01 | K92: 70,000,000.00 | L92: =Table5402945[[#This Row],[Yurtiçi İhraç Limiti Nominal Tutar (TL)]]-Table5402945[[#This Row],[Yurtiçi Satışı Gerçekleşen Nominal Tutar (TL)]] -> 0.00
A93: 91 | B93: Halk Yatırım Menkul Değerler A.Ş. | C93: Finansal Kurum | D93: Borçlanma Aracı | E93: 2017-05-08 | F93: - | G93: 2017-05-26 | H93: Nitelikli Yatırımcı | I93: 650,000,000.00 | J93: 181,996,360.07 | K93: 650,000,000.00 | L93: =Table5402945[[#This Row],[Yurtiçi İhraç Limiti Nominal Tutar (TL)]]-Table5402945[[#This Row],[Yurtiçi Satışı Gerçekleşen Nominal Tutar (TL)]] -> 0.00
A94: 92 | B94: SGT Sanayi ve Ticari Ürünler Dış Ticaret A.Ş. | C94: Reel Sektör | D94: Borçlanma Aracı | E94: 2017-04-10 | F94: - | G94: 2017-06-05 | H94: Tahsisli | I94: 500,000.00 | J94: 142,356.86 | K94: 500,000.00 | L94: =Table5402945[[#This Row],[Yurtiçi İhraç Limiti Nominal Tutar (TL)]]-Table5402945[[#This Row],[Yurtiçi Satışı Gerçekleşen Nominal Tutar (TL)]] -> 0.00
A95: 93 | B95: Aktif Yatırım Bankası A.Ş. (5) No’lu Emek Varlık Finansmanı Fonu | C95: Fonlar | D95: VDMK | E95: 2017-04-12 | F95: - | G95: 2017-06-05 | H95: Nitelikli Yatırımcı | I95: 300,000,000.00 | J95: 85,414,116.11 | K95: 300,000,000.00 | L95: =Table5402945[[#This Row],[Yurtiçi İhraç Limiti Nominal Tutar (TL)]]-Table5402945[[#This Row],[Yurtiçi Satışı Gerçekleşen Nominal Tutar (TL)]] -> 0.00
A96: 94 | B96: İş Faktoring A.Ş. | C96: Finansal Kurum | D96: Borçlanma Aracı | E96: 2017-05-08 | F96: - | G96: 2017-06-05 | H96: Nitelikli Yatırımcı | I96: 400,000,000.00 | J96: 113,885,488.14 | K96: 263,190,060.00 | L96: =Table5402945[[#This Row],[Yurtiçi İhraç Limiti Nominal Tutar (TL)]]-Table5402945[[#This Row],[Yurtiçi Satışı Gerçekleşen Nominal Tutar (TL)]] -> 136,809,940.00
A97: 95 | B97: Ak Yatırım Menkul Değerler A.Ş. | C97: Finansal Kurum | D97: Borçlanma Aracı | E97: 2017-05-08 | F97: - | G97: 2017-06-15 | H97: Nitelikli Yatırımcı | I97: 500,000,000.00 | J97: 142,478,556.98 | K97: 500,000,000.00 | L97: =Table5402945[[#This Row],[Yurtiçi İhraç Limiti Nominal Tutar (TL)]]-Table5402945[[#This Row],[Yurtiçi Satışı Gerçekleşen Nominal Tutar (TL)]] -> 0.00
A98: 96 | B98: Tera Yatırım Menkul Değerler A.Ş. | C98: Finansal Kurum | D98: Borçlanma Aracı | E98: 2017-05-18 | F98: - | G98: 2017-06-15 | H98: Tahsisli/Nitelikli Yatırımcı | I98: 95,000,000.00 | J98: 27,070,925.83 | K98: 40,000,000.00 | L98: =Table5402945[[#This Row],[Yurtiçi İhraç Limiti Nominal Tutar (TL)]]-Table5402945[[#This Row],[Yurtiçi Satışı Gerçekleşen Nominal Tutar (TL)]] -> 55,000,000.00
A99: 97 | B99: Gedik Yatırım Holding A.Ş. | C99: Reel Sektör | D99: Borçlanma Aracı | E99: 2017-05-22 | F99: - | G99: 2017-06-15 | H99: Nitelikli Yatırımcı | I99: 10,000,000.00 | J99: 2,849,571.14 | K99: 10,000,000.00 | L99: =Table5402945[[#This Row],[Yurtiçi İhraç Limiti Nominal Tutar (TL)]]-Table5402945[[#This Row],[Yurtiçi Satışı Gerçekleşen Nominal Tutar (TL)]] -> 0.00
A100: 98 | B100: Lider Faktoring A.Ş. | C100: Finansal Kurum | D100: Borçlanma Aracı | E100: 2017-05-29 | F100: - | G100: 2017-06-15 | H100: Tahsisli/Nitelikli Yatırımcı | I100: 300,000,000.00 | J100: 85,487,134.19 | K100: 280,150,000.00 | L100: =Table5402945[[#This Row],[Yurtiçi İhraç Limiti Nominal Tutar (TL)]]-Table5402945[[#This Row],[Yurtiçi Satışı Gerçekleşen Nominal Tutar (TL)]] -> 19,850,000.00
A101: 99 | B101: Ak Finansal Kiralama A.Ş. | C101: Finansal Kurum | D101: Borçlanma Aracı | E101: 2017-05-30 | F101: - | G101: 2017-06-15 | H101: Yurt Dışı | M101: 350,000,000.00 | N101: ABD Doları | O101: 0.00 | P101: =Table5402945[[#This Row],[Yurtdışı İhraç Limiti Nominal Tutar]]-Table5402945[[#This Row],[Yurtdışı Tertip İhraç Belgesi Verilen Nominal Tutar]] -> 350,000,000.00 | Q101: 0.00
A102: 100 | B102: Doruk Faktoring A.Ş. (Eski Ticaret Unvanı: Doğan Faktoring A.Ş.) | C102: Finansal Kurum | D102: Borçlanma Aracı | E102: 2017-05-15 | F102: - | G102: 2017-06-22 | H102: Nitelikli Yatırımcı | I102: 300,000,000.00 | J102: 85,123,286.89 | K102: 90,000,000.00 | L102: =Table5402945[[#This Row],[Yurtiçi İhraç Limiti Nominal Tutar (TL)]]-Table5402945[[#This Row],[Yurtiçi Satışı Gerçekleşen Nominal Tutar (TL)]] -> 210,000,000.00
A103: 101 | B103: Sardes Faktoring A.Ş. | C103: Finansal Kurum | D103: Borçlanma Aracı | E103: 2017-05-24 | F103: - | G103: 2017-06-22 | H103: Nitelikli Yatırımcı | I103: 40,000,000.00 | J103: 11,349,771.59 | K103: 20,000,000.00 | L103: =Table5402945[[#This Row],[Yurtiçi İhraç Limiti Nominal Tutar (TL)]]-Table5402945[[#This Row],[Yurtiçi Satışı Gerçekleşen Nominal Tutar (TL)]] -> 20,000,000.00
A104: 102 | B104: İş Gayrimenkul Yatırım Ortaklığı A.Ş. | C104: Reel Sektör | D104: Borçlanma Aracı | E104: 2017-06-06 | F104: - | G104: 2017-06-22 | H104: Nitelikli Yatırımcı | I104: 400,000,000.00 | J104: 113,497,715.86 | K104: 0.00 | L104: =Table5402945[[#This Row],[Yurtiçi İhraç Limiti Nominal Tutar (TL)]]-Table5402945[[#This Row],[Yurtiçi Satışı Gerçekleşen Nominal Tutar (TL)]] -> 400,000,000.00
A105: 103 | B105: Nurol Yatırım Bankası A.Ş. | C105: Banka | D105: Borçlanma Aracı | E105: 2017-06-07 | F105: - | G105: 2017-06-22 | H105: Nitelikli Yatırımcı | I105: 400,000,000.00 | J105: 113,497,715.86 | K105: 400,000,000.00 | L105: =Table5402945[[#This Row],[Yurtiçi İhraç Limiti Nominal Tutar (TL)]]-Table5402945[[#This Row],[Yurtiçi Satışı Gerçekleşen Nominal Tutar (TL)]] -> 0.00
A106: 104 | B106: Optima Faktoring A.Ş. | C106: Finansal Kurum | D106: Borçlanma Aracı | E106: 2017-06-05 | F106: - | G106: 2017-07-07 | H106: Nitelikli Yatırımcı | I106: 90,000,000.00 | J106: 24,749,071.91 | K106: 38,000,000.00 | L106: =Table5402945[[#This Row],[Yurtiçi İhraç Limiti Nominal Tutar (TL)]]-Table5402945[[#This Row],[Yurtiçi Satışı Gerçekleşen Nominal Tutar (TL)]] -> 52,000,000.00
A107: 105 | B107: Türkiye İş Bankası A.Ş. | C107: Banka | D107: Borçlanma Aracı | E107: 2017-06-08 | F107: - | G107: 2017-07-07 | H107: Nitelikli Yatırımcı | I107: 5,000,000,000.00 | J107: 1,374,948,439.43 | K107: 1,100,000,000.00 | L107: =Table5402945[[#This Row],[Yurtiçi İhraç Limiti Nominal Tutar (TL)]]-Table5402945[[#This Row],[Yurtiçi Satışı Gerçekleşen Nominal Tutar (TL)]] -> 3,900,000,000.00
A108: 106 | B108: Oyak Yatırım Menkul Değerler A.Ş. | C108: Finansal Kurum | D108: Borçlanma Aracı | E108: 2017-06-13 | F108: - | G108: 2017-07-07 | H108: Nitelikli Yatırımcı | I108: 180,000,000.00 | J108: 49,498,143.82 | K108: 180,000,000.00 | L108: =Table5402945[[#This Row],[Yurtiçi İhraç Limiti Nominal Tutar (TL)]]-Table5402945[[#This Row],[Yurtiçi Satışı Gerçekleşen Nominal Tutar (TL)]] -> 0.00
A109: 107 | B109: Rönesans Holding A.Ş. | C109: Reel Sektör | D109: Borçlanma Aracı | E109: 2017-06-15 | F109: - | G109: 2017-07-07 | H109: Nitelikli Yatırımcı | I109: 500,000,000.00 | J109: 137,494,843.94 | K109: 170,000,000.00 | L109: =Table5402945[[#This Row],[Yurtiçi İhraç Limiti Nominal Tutar (TL)]]-Table5402945[[#This Row],[Yurtiçi Satışı Gerçekleşen Nominal Tutar (TL)]] -> 330,000,000.00
A110: 108 | B110: Aktif Bank Sukuk Varlık Kiralama A.Ş. | C110: Finansal Kurum | D110: Kira Sertifikası | E110: 2017-06-16 | F110: - | G110: 2017-07-07 | H110: Nitelikli Yatırımcı | I110: 150,000,000.00 | J110: 41,248,453.18 | K110: 150,000,000.00 | L110: =Table5402945[[#This Row],[Yurtiçi İhraç Limiti Nominal Tutar (TL)]]-Table5402945[[#This Row],[Yurtiçi Satışı Gerçekleşen Nominal Tutar (TL)]] -> 0.00
A111: 109 | B111: Halk Finansal Kiralama A.Ş. | C111: Finansal Kurum | D111: Borçlanma Aracı | E111: 2017-06-20 | F111: - | G111: 2017-07-07 | H111: Nitelikli Yatırımcı | I111: 650,000,000.00 | J111: 178,743,297.13 | K111: 295,000,000.00 | L111: =Table5402945[[#This Row],[Yurtiçi İhraç Limiti Nominal Tutar (TL)]]-Table5402945[[#This Row],[Yurtiçi Satışı Gerçekleşen Nominal Tutar (TL)]] -> 355,000,000.00
A112: 110 | B112: Palgaz Doğalgaz Dağıtım Sanayi ve Ticaret A.Ş. | C112: Reel Sektör | D112: Borçlanma Aracı | E112: 2017-06-21 | F112: - | G112: 2017-07-07 | H112: Tahsisli/Nitelikli Yatırımcı | I112: 350,000,000.00 | J112: 96,246,390.76 | K112: 0.00 | L112: =Table5402945[[#This Row],[Yurtiçi İhraç Limiti Nominal Tutar (TL)]]-Table5402945[[#This Row],[Yurtiçi Satışı Gerçekleşen Nominal Tutar (TL)]] -> 350,000,000.00
A113: 111 | B113: Tiryaki Agro Gıda Sanayi ve Ticaret A.Ş. | C113: Reel Sektör | D113: Borçlanma Aracı | E113: 2017-04-07 | F113: - | G113: 2017-07-14 | H113: Tahsisli/Nitelikli Yatırımcı | I113: 200,000,000.00 | J113: 56,067,954.36 | K113: 0.00 | L113: =Table5402945[[#This Row],[Yurtiçi İhraç Limiti Nominal Tutar (TL)]]-Table5402945[[#This Row],[Yurtiçi Satışı Gerçekleşen Nominal Tutar (TL)]] -> 200,000,000.00
A114: 112 | B114: Çelikler Taahhüt İnşaat ve Sanayi A.Ş. | C114: Reel Sektör | D114: Borçlanma Aracı | E114: 2017-05-30 | F114: - | G114: 2017-07-14 | H114: Nitelikli Yatırımcı | I114: 400,000,000.00 | J114: 112,135,908.72 | K114: 0.00 | L114: =Table5402945[[#This Row],[Yurtiçi İhraç Limiti Nominal Tutar (TL)]]-Table5402945[[#This Row],[Yurtiçi Satışı Gerçekleşen Nominal Tutar (TL)]] -> 400,000,000.00
A115: 113 | B115: Odea Bank A.Ş. | C115: Banka | D115: Borçlanma Aracı | E115: 2017-07-06 | F115: - | G115: 2017-07-14 | H115: Yurt Dışı | M115: 300,000,000.00 | N115: ABD Doları | O115: 300,000,000.00 | P115: =Table5402945[[#This Row],[Yurtdışı İhraç Limiti Nominal Tutar]]-Table5402945[[#This Row],[Yurtdışı Tertip İhraç Belgesi Verilen Nominal Tutar]] -> 0.00 | Q115: 1,133,610,000.00
A116: 114 | B116: Enerjisa Enerji A.Ş. | C116: Reel Sektör | D116: Borçlanma Aracı | E116: 2017-05-25 | F116: - | G116: 2017-07-21 | H116: Nitelikli Yatırımcı | I116: 1,000,000,000.00 | J116: 282,805,429.86 | K116: 435,000,000.00 | L116: =Table5402945[[#This Row],[Yurtiçi İhraç Limiti Nominal Tutar (TL)]]-Table5402945[[#This Row],[Yurtiçi Satışı Gerçekleşen Nominal Tutar (TL)]] -> 565,000,000.00
A117: 115 | B117: Şeker Faktoring A.Ş. | C117: Finansal Kurum | D117: Borçlanma Aracı | E117: 2017-06-06 | F117: - | G117: 2017-07-21 | H117: Halka Arz/Tahsisli/Nitelikli Yatırımcı | I117: 55,000,000.00 | J117: 15,554,298.64 | K117: 55,000,000.00 | L117: =Table5402945[[#This Row],[Yurtiçi İhraç Limiti Nominal Tutar (TL)]]-Table5402945[[#This Row],[Yurtiçi Satışı Gerçekleşen Nominal Tutar (TL)]] -> 0.00
A118: 116 | B118: Çağdaş Faktoring A.Ş. | C118: Finansal Kurum | D118: Borçlanma Aracı | E118: 2017-06-07 | F118: - | G118: 2017-07-21 | H118: Nitelikli Yatırımcı | I118: 150,000,000.00 | J118: 42,420,814.48 | K118: 45,000,000.00 | L118: =Table5402945[[#This Row],[Yurtiçi İhraç Limiti Nominal Tutar (TL)]]-Table5402945[[#This Row],[Yurtiçi Satışı Gerçekleşen Nominal Tutar (TL)]] -> 105,000,000.00
A119: 117 | B119: Burgan Bank A.Ş. | C119: Banka | D119: Borçlanma Aracı | E119: 2017-06-14 | F119: - | G119: 2017-07-21 | H119: Yurt Dışı | M119: 400,000,000.00 | N119: ABD Doları | O119: 0.00 | P119: =Table5402945[[#This Row],[Yurtdışı İhraç Limiti Nominal Tutar]]-Table5402945[[#This Row],[Yurtdışı Tertip İhraç Belgesi Verilen Nominal Tutar]] -> 400,000,000.00 | Q119: 0.00
A120: 118 | B120: Garanti Faktoring A.Ş. | C120: Finansal Kurum | D120: Borçlanma Aracı | E120: 2017-06-15 | F120: - | G120: 2017-07-21 | H120: Nitelikli Yatırımcı | I120: 1,000,000,000.00 | J120: 282,805,429.86 | K120: 834,910,000.00 | L120: =Table5402945[[#This Row],[Yurtiçi İhraç Limiti Nominal Tutar (TL)]]-Table5402945[[#This Row],[Yurtiçi Satışı Gerçekleşen Nominal Tutar (TL)]] -> 165,090,000.00
A121: 119 | B121: Çelik Motor Ticaret A.Ş. | C121: Reel Sektör | D121: Borçlanma Aracı | E121: 2017-06-23 | F121: - | G121: 2017-07-28 | H121: Nitelikli Yatırımcı | I121: 180,000,000.00 | J121: 50,910,736.51 | K121: 170,000,000.00 | L121: =Table5402945[[#This Row],[Yurtiçi İhraç Limiti Nominal Tutar (TL)]]-Table5402945[[#This Row],[Yurtiçi Satışı Gerçekleşen Nominal Tutar (TL)]] -> 10,000,000.00
A122: 120 | B122: LDR Turizm A.Ş. | C122: Reel Sektör | D122: Borçlanma Aracı | E122: 2017-06-29 | F122: - | G122: 2017-07-28 | H122: Nitelikli Yatırımcı | I122: 60,000,000.00 | J122: 16,970,245.50 | K122: 36,000,000.00 | L122: =Table5402945[[#This Row],[Yurtiçi İhraç Limiti Nominal Tutar (TL)]]-Table5402945[[#This Row],[Yurtiçi Satışı Gerçekleşen Nominal Tutar (TL)]] -> 24,000,000.00
A123: 121 | B123: Vakıf Faktoring A.Ş. | C123: Finansal Kurum | D123: Borçlanma Aracı | E123: 2017-07-06 | F123: - | G123: 2017-07-28 | H123: Tahsisli/Nitelikli Yatırımcı | I123: 300,000,000.00 | J123: 84,851,227.51 | K123: 299,260,000.00 | L123: =Table5402945[[#This Row],[Yurtiçi İhraç Limiti Nominal Tutar (TL)]]-Table5402945[[#This Row],[Yurtiçi Satışı Gerçekleşen Nominal Tutar (TL)]] -> 740,000.00
A124: 122 | B124: Ünlü Menkul Değerler A.Ş. | C124: Finansal Kurum | D124: Borçlanma Aracı | E124: 2017-07-12 | F124: - | G124: 2017-07-28 | H124: Nitelikli Yatırımcı | I124: 100,000,000.00 | J124: 28,283,742.50 | K124: 99,898,039.00 | L124: =Table5402945[[#This Row],[Yurtiçi İhraç Limiti Nominal Tutar (TL)]]-Table5402945[[#This Row],[Yurtiçi Satışı Gerçekleşen Nominal Tutar (TL)]] -> 101,961.00
A125: 123 | B125: Türkiye Vakıflar Bankası T.A.O. | C125: Banka | D125: Borçlanma Aracı | E125: 2017-06-22 | F125: - | G125: 2017-08-04 | H125: Halka Arz/Tahsisli/Nitelikli Yatırımcı | I125: 16,000,000,000.00 | J125: 4,526,166,902.40 | K125: 5,423,334,259.00 | L125: =Table5402945[[#This Row],[Yurtiçi İhraç Limiti Nominal Tutar (TL)]]-Table5402945[[#This Row],[Yurtiçi Satışı Gerçekleşen Nominal Tutar (TL)]] -> 10,576,665,741.00
A126: 124 | B126: ALJ Finansman A.Ş. | C126: Finansal Kurum | D126: Borçlanma Aracı | E126: 2017-06-23 | F126: - | G126: 2017-08-04 | H126: Tahsisli/Nitelikli Yatırımcı | I126: 350,000,000.00 | J126: 99,009,900.99 | K126: 0.00 | L126: =Table5402945[[#This Row],[Yurtiçi İhraç Limiti Nominal Tutar (TL)]]-Table5402945[[#This Row],[Yurtiçi Satışı Gerçekleşen Nominal Tutar (TL)]] -> 350,000,000.00
A127: 125 | B127: Umur Basım Sanayi ve Ticaret A.Ş. | C127: Reel Sektör | D127: Borçlanma Aracı | E127: 2017-07-13 | F127: - | G127: 2017-08-04 | H127: Nitelikli Yatırımcı | I127: 100,000,000.00 | J127: 28,288,543.14 | K127: 0.00 | L127: =Table5402945[[#This Row],[Yurtiçi İhraç Limiti Nominal Tutar (TL)]]-Table5402945[[#This Row],[Yurtiçi Satışı Gerçekleşen Nominal Tutar (TL)]] -> 100,000,000.00
A128: 126 | B128: Tüpraş Türkiye Petrol Rafinerileri A.Ş. | C128: Reel Sektör | D128: Borçlanma Aracı | E128: 2017-07-17 | F128: - | G128: 2017-08-04 | H128: Yurt Dışı | M128: 1,000,000,000.00 | N128: ABD Doları | O128: 700,000,000.00 | P128: =Table5402945[[#This Row],[Yurtdışı İhraç Limiti Nominal Tutar]]-Table5402945[[#This Row],[Yurtdışı Tertip İhraç Belgesi Verilen Nominal Tutar]] -> 300,000,000.00 | Q128: 2,645,090,000.00
A129: 127 | B129: Aktif Yatırım Bankası A.Ş. | C129: Banka | D129: Borçlanma Aracı | E129: 2017-07-21 | F129: - | G129: 2017-08-04 | H129: Nitelikli Yatırımcı | I129: 1,700,000,000.00 | J129: 480,905,233.38 | K129: 1,700,000,000.00 | L129: =Table5402945[[#This Row],[Yurtiçi İhraç Limiti Nominal Tutar (TL)]]-Table5402945[[#This Row],[Yurtiçi Satışı Gerçekleşen Nominal Tutar (TL)]] -> 0.00
A130: 128 | B130: Yapı Kredi Yatırım Menkul Değerler A.Ş. | C130: Finansal Kurum | D130: Borçlanma Aracı | E130: 2017-08-01 | F130: - | G130: 2017-08-04 | H130: Tahsisli/Nitelikli Yatırımcı | I130: 1,350,000,000.00 | J130: 381,895,332.39 | K130: 1,344,960,000.00 | L130: =Table5402945[[#This Row],[Yurtiçi İhraç Limiti Nominal Tutar (TL)]]-Table5402945[[#This Row],[Yurtiçi Satışı Gerçekleşen Nominal Tutar (TL)]] -> 5,040,000.00
A131: 129 | B131: Yapı Kredi Yatırım Menkul Değerler A.Ş. | C131: Finansal Kurum | D131: Borçlanma Aracı | E131: 2017-08-01 | F131: - | G131: 2017-08-04 | H131: Nitelikli Yatırımcı | I131: 300,000,000.00 | J131: 84,865,629.42 | K131: 299,950,000.00 | L131: =Table5402945[[#This Row],[Yurtiçi İhraç Limiti Nominal Tutar (TL)]]-Table5402945[[#This Row],[Yurtiçi Satışı Gerçekleşen Nominal Tutar (TL)]] -> 50,000.00
A132: 130 | B132: Aktif Yatırım Bankası A.Ş. (2) No'lu Turkcell Varlık Finansmanı Fonu | C132: Fonlar | D132: VDMK | E132: 2017-06-30 | F132: - | G132: 2017-08-11 | H132: Nitelikli Yatırımcı | I132: 100,000,000.00 | J132: 28,169,807.60 | K132: 100,000,000.00 | L132: =Table5402945[[#This Row],[Yurtiçi İhraç Limiti Nominal Tutar (TL)]]-Table5402945[[#This Row],[Yurtiçi Satışı Gerçekleşen Nominal Tutar (TL)]] -> 0.00
A133: 131 | B133: Karsan Otomotiv Sanayii ve Ticaret A.Ş. | C133: Reel Sektör | D133: Borçlanma Aracı | E133: 2017-07-13 | F133: - | G133: 2017-08-11 | H133: Tahsisli/Nitelikli Yatırımcı | I133: 200,000,000.00 | J133: 56,339,615.20 | K133: 155,000,000.00 | L133: =Table5402945[[#This Row],[Yurtiçi İhraç Limiti Nominal Tutar (TL)]]-Table5402945[[#This Row],[Yurtiçi Satışı Gerçekleşen Nominal Tutar (TL)]] -> 45,000,000.00
A134: 132 | B134: Eko Faktoring A.Ş. | C134: Finansal Kurum | D134: Borçlanma Aracı | E134: 2017-07-20 | F134: - | G134: 2017-08-11 | H134: Nitelikli Yatırımcı | I134: 135,000,000.00 | J134: 38,029,240.26 | K134: 98,250,000.00 | L134: =Table5402945[[#This Row],[Yurtiçi İhraç Limiti Nominal Tutar (TL)]]-Table5402945[[#This Row],[Yurtiçi Satışı Gerçekleşen Nominal Tutar (TL)]] -> 36,750,000.00
A135: 133 | B135: Coca Cola İçecek A.Ş. | C135: Reel Sektör | D135: Borçlanma Aracı | E135: 2017-07-26 | F135: - | G135: 2017-08-11 | H135: Yurt Dışı | M135: 1,000,000,000.00 | N135: ABD Doları | O135: 500,000,000.00 | P135: =Table5402945[[#This Row],[Yurtdışı İhraç Limiti Nominal Tutar]]-Table5402945[[#This Row],[Yurtdışı Tertip İhraç Belgesi Verilen Nominal Tutar]] -> 500,000,000.00 | Q135: 1,889,350,000.00
A136: 134 | B136: Garanti Filo Yönetimi Hizmetleri A.Ş. | C136: Reel Sektör | D136: Borçlanma Aracı | E136: 2017-06-28 | F136: - | G136: 2017-08-23 | H136: Nitelikli Yatırımcı | I136: 90,000,000.00 | J136: 25,700,334.10 | K136: 90,000,000.00 | L136: =Table5402945[[#This Row],[Yurtiçi İhraç Limiti Nominal Tutar (TL)]]-Table5402945[[#This Row],[Yurtiçi Satışı Gerçekleşen Nominal Tutar (TL)]] -> 0.00
A137: 135 | B137: Alternatifbank A.Ş. | C137: Banka | D137: Borçlanma Aracı | E137: 2017-07-10 | F137: - | G137: 2017-08-23 | H137: Nitelikli Yatırımcı | I137: 700,000,000.00 | J137: 199,891,487.48 | K137: 0.00 | L137: =Table5402945[[#This Row],[Yurtiçi İhraç Limiti Nominal Tutar (TL)]]-Table5402945[[#This Row],[Yurtiçi Satışı Gerçekleşen Nominal Tutar (TL)]] -> 700,000,000.00
A138: 136 | B138: Katmerciler Araç Üstü Ekipman Sanayi ve Ticaret A.Ş. | C138: Reel Sektör | D138: Borçlanma Aracı | E138: 2017-07-11 | F138: - | G138: 2017-08-23 | H138: Nitelikli Yatırımcı | I138: 150,000,000.00 | J138: 42,833,890.17 | K138: 0.00 | L138: =Table5402945[[#This Row],[Yurtiçi İhraç Limiti Nominal Tutar (TL)]]-Table5402945[[#This Row],[Yurtiçi Satışı Gerçekleşen Nominal Tutar (TL)]] -> 150,000,000.00
A139: 137 | B139: Deniz Gayrimenkul Yatırım Ortaklığı A.Ş. | C139: Reel Sektör | D139: Borçlanma Aracı | E139: 2017-07-13 | F139: - | G139: 2017-08-23 | H139: Nitelikli Yatırımcı | I139: 250,000,000.00 | J139: 71,389,816.96 | K139: 0.00 | L139: =Table5402945[[#This Row],[Yurtiçi İhraç Limiti Nominal Tutar (TL)]]-Table5402945[[#This Row],[Yurtiçi Satışı Gerçekleşen Nominal Tutar (TL)]] -> 250,000,000.00
A140: 138 | B140: Zorlu Faktoring A.Ş. | C140: Finansal Kurum | D140: Borçlanma Aracı | E140: 2017-07-19 | F140: - | G140: 2017-08-23 | H140: Nitelikli Yatırımcı | I140: 199,000,000.00 | J140: 56,826,294.30 | K140: 88,000,000.00 | L140: =Table5402945[[#This Row],[Yurtiçi İhraç Limiti Nominal Tutar (TL)]]-Table5402945[[#This Row],[Yurtiçi Satışı Gerçekleşen Nominal Tutar (TL)]] -> 111,000,000.00
A141: 139 | B141: Halk Gayrimenkul Yatırım Ortaklığı A.Ş. | C141: Reel Sektör | D141: Borçlanma Aracı | E141: 2017-07-27 | F141: - | G141: 2017-08-23 | H141: Tahsisli/Nitelikli Yatırımcı | I141: 500,000,000.00 | J141: 142,779,633.91 | K141: 100,000,000.00 | L141: =Table5402945[[#This Row],[Yurtiçi İhraç Limiti Nominal Tutar (TL)]]-Table5402945[[#This Row],[Yurtiçi Satışı Gerçekleşen Nominal Tutar (TL)]] -> 400,000,000.00
A142: 140 | B142: Ak Yatırım Menkul Değerler A.Ş. | C142: Finansal Kurum | D142: Borçlanma Aracı | E142: 2017-08-02 | F142: - | G142: 2017-08-23 | H142: Nitelikli Yatırımcı | I142: 400,000,000.00 | J142: 114,223,707.13 | K142: 0.00 | L142: =Table5402945[[#This Row],[Yurtiçi İhraç Limiti Nominal Tutar (TL)]]-Table5402945[[#This Row],[Yurtiçi Satışı Gerçekleşen Nominal Tutar (TL)]] -> 400,000,000.00
A143: 141 | B143: Ak Yatırım Menkul Değerler A.Ş. | C143: Finansal Kurum | D143: Borçlanma Aracı | E143: 2017-08-02 | F143: - | G143: 2017-08-23 | H143: Nitelikli Yatırımcı | I143: 200,000,000.00 | J143: 57,111,853.57 | K143: 121,487,000.00 | L143: =Table5402945[[#This Row],[Yurtiçi İhraç Limiti Nominal Tutar (TL)]]-Table5402945[[#This Row],[Yurtiçi Satışı Gerçekleşen Nominal Tutar (TL)]] -> 78,513,000.00
A144: 142 | B144: Deniz Faktoring A.Ş. | C144: Finansal Kurum | D144: Borçlanma Aracı | E144: 2017-08-03 | F144: - | G144: 2017-08-23 | H144: Nitelikli Yatırımcı | I144: 1,015,000,000.00 | J144: 289,842,656.84 | K144: 336,200,000.00 | L144: =Table5402945[[#This Row],[Yurtiçi İhraç Limiti Nominal Tutar (TL)]]-Table5402945[[#This Row],[Yurtiçi Satışı Gerçekleşen Nominal Tutar (TL)]] -> 678,800,000.00
A145: 143 | B145: Limak Çimento Sanayi ve Ticaret A.Ş. | C145: Reel Sektör | D145: Borçlanma Aracı | E145: 2017-08-11 | F145: - | G145: 2017-08-23 | H145: Nitelikli Yatırımcı | I145: 300,000,000.00 | J145: 85,667,780.35 | K145: 0.00 | L145: =Table5402945[[#This Row],[Yurtiçi İhraç Limiti Nominal Tutar (TL)]]-Table5402945[[#This Row],[Yurtiçi Satışı Gerçekleşen Nominal Tutar (TL)]] -> 300,000,000.00
A146: 144 | B146: Türkiye Vakıflar Bankası T.A.O. | C146: Banka | D146: Borçlanma Aracı | E146: 2017-08-15 | F146: - | G146: 2017-08-23 | H146: Nitelikli Yatırımcı | I146: 3,000,000,000.00 | J146: 856,677,803.48 | K146: 525,000,000.00 | L146: =Table5402945[[#This Row],[Yurtiçi İhraç Limiti Nominal Tutar (TL)]]-Table5402945[[#This Row],[Yurtiçi Satışı Gerçekleşen Nominal Tutar (TL)]] -> 2,475,000,000.00
A147: 145 | B147: Volkswagen Doğuş Finansman A.Ş. | C147: Finansal Kurum | D147: Borçlanma Aracı | E147: 2017-08-07 | F147: - | G147: 2017-09-08 | H147: Nitelikli Yatırımcı | I147: 950,000,000.00 | J147: 278,404,595.14 | K147: 130,000,000.00 | L147: =Table5402945[[#This Row],[Yurtiçi İhraç Limiti Nominal Tutar (TL)]]-Table5402945[[#This Row],[Yurtiçi Satışı Gerçekleşen Nominal Tutar (TL)]] -> 820,000,000.00
A148: 146 | B148: Oyak Yatırım Menkul Değerler A.Ş. | C148: Finansal Kurum | D148: Borçlanma Aracı | E148: 2017-08-10 | F148: - | G148: 2017-09-08 | H148: Nitelikli Yatırımcı | I148: 30,000,000.00 | J148: 8,791,724.06 | K148: 0.00 | L148: =Table5402945[[#This Row],[Yurtiçi İhraç Limiti Nominal Tutar (TL)]]-Table5402945[[#This Row],[Yurtiçi Satışı Gerçekleşen Nominal Tutar (TL)]] -> 30,000,000.00
A149: 147 | B149: Katılım Varlık Kiralama A.Ş. | C149: Finansal Kurum | D149: Kira Sertifikası | E149: 2017-07-17 | F149: - | G149: 2017-09-21 | H149: Tahsisli/Nitelikli Yatırımcı | I149: 200,000,000.00 | J149: 56,894,148.44 | K149: 200,000,000.00 | L149: =Table5402945[[#This Row],[Yurtiçi İhraç Limiti Nominal Tutar (TL)]]-Table5402945[[#This Row],[Yurtiçi Satışı Gerçekleşen Nominal Tutar (TL)]] -> 0.00
A150: 148 | B150: Aksa Enerji Üretim A.Ş. | C150: Reel Sektör | D150: Borçlanma Aracı | E150: 2017-07-26 | F150: - | G150: 2017-09-21 | H150: Nitelikli Yatırımcı | I150: 335,000,000.00 | J150: 95,297,698.63 | K150: 0.00 | L150: =Table5402945[[#This Row],[Yurtiçi İhraç Limiti Nominal Tutar (TL)]]-Table5402945[[#This Row],[Yurtiçi Satışı Gerçekleşen Nominal Tutar (TL)]] -> 335,000,000.00
A151: 149 | B151: Atılım Faktoring A.Ş. | C151: Finansal Kurum | D151: Borçlanma Aracı | E151: 2017-08-04 | F151: - | G151: 2017-09-21 | H151: Nitelikli Yatırımcı | I151: 130,000,000.00 | J151: 36,981,196.48 | K151: 41,500,000.00 | L151: =Table5402945[[#This Row],[Yurtiçi İhraç Limiti Nominal Tutar (TL)]]-Table5402945[[#This Row],[Yurtiçi Satışı Gerçekleşen Nominal Tutar (TL)]] -> 88,500,000.00
A152: 150 | B152: Analiz Faktoring A.Ş. | C152: Finansal Kurum | D152: Borçlanma Aracı | E152: 2017-08-16 | F152: - | G152: 2017-09-21 | H152: Nitelikli Yatırımcı | I152: 39,000,000.00 | J152: 11,094,358.95 | K152: 39,000,000.00 | L152: =Table5402945[[#This Row],[Yurtiçi İhraç Limiti Nominal Tutar (TL)]]-Table5402945[[#This Row],[Yurtiçi Satışı Gerçekleşen Nominal Tutar (TL)]] -> 0.00
A153: 151 | B153: Finans Faktoring A.Ş. | C153: Finansal Kurum | D153: Borçlanma Aracı | E153: 2017-08-21 | F153: - | G153: 2017-09-21 | H153: Tahsisli/Nitelikli Yatırımcı | I153: 194,495,600.00 | J153: 55,328,307.68 | K153: 194,494,600.00 | L153: =Table5402945[[#This Row],[Yurtiçi İhraç Limiti Nominal Tutar (TL)]]-Table5402945[[#This Row],[Yurtiçi Satışı Gerçekleşen Nominal Tutar (TL)]] -> 1,000.00
A154: 152 | B154: Net Holding A.Ş. | C154: Reel Sektör | D154: Borçlanma Aracı | E154: 2017-09-05 | F154: - | G154: 2017-09-22 | H154: Yurt Dışı | M154: 50,000,000.00 | N154: Avro | O154: 39,000,000.00 | P154: =Table5402945[[#This Row],[Yurtdışı İhraç Limiti Nominal Tutar]]-Table5402945[[#This Row],[Yurtdışı Tertip İhraç Belgesi Verilen Nominal Tutar]] -> 11,000,000.00 | Q154: 169,178,269.00
A155: 153 | B155: Türkiye Halk Bankası A.Ş. | C155: Banka | D155: Borçlanma Aracı | E155: 2017-08-21 | F155: - | G155: 2017-09-29 | H155: Yurt Dışı | M155: 2,500,000,000.00 | N155: ABD Doları | O155: 0.00 | P155: =Table5402945[[#This Row],[Yurtdışı İhraç Limiti Nominal Tutar]]-Table5402945[[#This Row],[Yurtdışı Tertip İhraç Belgesi Verilen Nominal Tutar]] -> 2,500,000,000.00 | Q155: 0.00
A156: 154 | B156: Denizbank A.Ş. | C156: Banka | D156: Borçlanma Aracı | E156: 2017-08-22 | F156: - | G156: 2017-09-29 | H156: Halka Arz/Tahsisli/Nitelikli Yatırımcı | I156: 7,000,000,000.00 | J156: 1,967,120,977.94 | K156: 1,114,000,000.00 | L156: =Table5402945[[#This Row],[Yurtiçi İhraç Limiti Nominal Tutar (TL)]]-Table5402945[[#This Row],[Yurtiçi Satışı Gerçekleşen Nominal Tutar (TL)]] -> 5,886,000,000.00
A157: 155 | B157: Türkiye Halk Bankası A.Ş. | C157: Banka | D157: Borçlanma Aracı | E157: 2017-09-05 | F157: - | G157: 2017-09-29 | H157: Halka Arz/Tahsisli/Nitelikli Yatırımcı | I157: 12,000,000,000.00 | J157: 3,372,207,390.75 | K157: 2,045,000,000.00 | L157: =Table5402945[[#This Row],[Yurtiçi İhraç Limiti Nominal Tutar (TL)]]-Table5402945[[#This Row],[Yurtiçi Satışı Gerçekleşen Nominal Tutar (TL)]] -> 9,955,000,000.00
A158: 156 | B158: Türkiye Halk Bankası A.Ş. | C158: Banka | D158: Borçlanma Aracı | E158: 2017-09-05 | F158: - | G158: 2017-09-29 | H158: Nitelikli Yatırımcı | I158: 3,000,000,000.00 | J158: 843,051,847.69 | K158: 1,000,000,000.00 | L158: =Table5402945[[#This Row],[Yurtiçi İhraç Limiti Nominal Tutar (TL)]]-Table5402945[[#This Row],[Yurtiçi Satışı Gerçekleşen Nominal Tutar (TL)]] -> 2,000,000,000.00
A159: 157 | B159: Nurol Varlık Kiralama A.Ş. | C159: Finansal Kurum | D159: Kira Sertifikası | E159: 2017-08-17 | F159: - | G159: 2017-09-29 | H159: Nitelikli Yatırımcı | I159: 100,000,000.00 | J159: 28,101,728.26 | K159: 0.00 | L159: =Table5402945[[#This Row],[Yurtiçi İhraç Limiti Nominal Tutar (TL)]]-Table5402945[[#This Row],[Yurtiçi Satışı Gerçekleşen Nominal Tutar (TL)]] -> 100,000,000.00
A160: 158 | B160: Türkiye Vakıflar Bankası T.A.O. | C160: Banka | D160: İTMK | E160: 2017-09-06 | F160: - | G160: 2017-09-29 | H160: Yurt Dışı | M160: 3,000,000,000.00 | N160: Avro | O160: 609,087,072.70 | P160: =Table5402945[[#This Row],[Yurtdışı İhraç Limiti Nominal Tutar]]-Table5402945[[#This Row],[Yurtdışı Tertip İhraç Belgesi Verilen Nominal Tutar]] -> 2,390,912,927.30 | Q160: 2,666,000,000.00
A161: 159 | B161: Ata Gayrimenkul Yatırım Ortaklığı A.Ş. | C161: Reel Sektör | D161: Borçlanma Aracı | E161: 2017-08-23 | F161: - | G161: 2017-09-29 | H161: Nitelikli Yatırımcı | I161: 150,000,000.00 | J161: =Table5402945[[#This Row],[Yurtiçi İhraç Limiti Nominal Tutar (TL)]]/3.5585 -> 42,152,592.38 | K161: 50,000,000.00 | L161: =Table5402945[[#This Row],[Yurtiçi İhraç Limiti Nominal Tutar (TL)]]-Table5402945[[#This Row],[Yurtiçi Satışı Gerçekleşen Nominal Tutar (TL)]] -> 100,000,000.00
A162: 160 | B162: Tam Faktoring A.Ş. | C162: Finansal Kurum | D162: Borçlanma Aracı | E162: 2017-07-18 | F162: - | G162: 2017-10-09 | H162: Tahsisli/Nitelikli Yatırımcı | I162: 30,000,000.00 | J162: =Table5402945[[#This Row],[Yurtiçi İhraç Limiti Nominal Tutar (TL)]]/3.7026 -> 8,102,414.52 | K162: 0.00 | L162: =Table5402945[[#This Row],[Yurtiçi İhraç Limiti Nominal Tutar (TL)]]-Table5402945[[#This Row],[Yurtiçi Satışı Gerçekleşen Nominal Tutar (TL)]] -> 30,000,000.00
A163: 161 | B163: Şeker Finansal Kiralama A.Ş. | C163: Finansal Kurum | D163: Borçlanma Aracı | E163: 2017-08-22 | F163: - | G163: 2017-10-09 | H163: Halka Arz/Tahsisli/Nitelikli Yatırımcı | I163: 110,000,000.00 | J163: =Table5402945[[#This Row],[Yurtiçi İhraç Limiti Nominal Tutar (TL)]]/3.7026 -> 29,708,853.24 | K163: 110,000,000.00 | L163: =Table5402945[[#This Row],[Yurtiçi İhraç Limiti Nominal Tutar (TL)]]-Table5402945[[#This Row],[Yurtiçi Satışı Gerçekleşen Nominal Tutar (TL)]] -> 0.00
A164: 162 | B164: Nurol Yatırım Bankası A.Ş | C164: Banka | D164: Borçlanma Aracı | E164: 2017-09-07 | F164: - | G164: 2017-10-09 | H164: Nitelikli Yatırımcı | I164: 461,021,250.00 | J164: =Table5402945[[#This Row],[Yurtiçi İhraç Limiti Nominal Tutar (TL)]]/3.7026 -> 124,512,842.33 | K164: 460,500,000.00 | L164: =Table5402945[[#This Row],[Yurtiçi İhraç Limiti Nominal Tutar (TL)]]-Table5402945[[#This Row],[Yurtiçi Satışı Gerçekleşen Nominal Tutar (TL)]] -> 521,250.00
A165: 163 | B165: Fibabanka A.Ş. | C165: Banka | D165: Borçlanma Aracı | E165: 2017-09-19 | F165: - | G165: 2017-10-09 | H165: Yurt Dışı | M165: 750,000,000.00 | N165: ABD Doları | O165: 0.00 | P165: =Table5402945[[#This Row],[Yurtdışı İhraç Limiti Nominal Tutar]]-Table5402945[[#This Row],[Yurtdışı Tertip İhraç Belgesi Verilen Nominal Tutar]] -> 750,000,000.00 | Q165: 0.00
A166: 164 | B166: Koç Fiat Kredi Finansman A.Ş. | C166: Finansal Kurum | D166: Borçlanma Aracı | E166: 2017-09-25 | F166: - | G166: 2017-10-09 | H166: Nitelikli Yatırımcı | I166: 545,000,000.00 | J166: =Table5402945[[#This Row],[Yurtiçi İhraç Limiti Nominal Tutar (TL)]]/3.7026 -> 147,193,863.77 | K166: 150,000,000.00 | L166: =Table5402945[[#This Row],[Yurtiçi İhraç Limiti Nominal Tutar (TL)]]-Table5402945[[#This Row],[Yurtiçi Satışı Gerçekleşen Nominal Tutar (TL)]] -> 395,000,000.00
A167: 165 | B167: Garanti Finansal Kiralama A.Ş. | C167: Finansal Kurum | D167: Borçlanma Aracı | E167: 2017-09-05 | F167: - | G167: 2017-10-13 | H167: Nitelikli Yatırımcı | I167: 2,388,993,000.00 | J167: =Table5402945[[#This Row],[Yurtiçi İhraç Limiti Nominal Tutar (TL)]]/3.6544 -> 653,730,571.37 | K167: 100,000,000.00 | L167: =Table5402945[[#This Row],[Yurtiçi İhraç Limiti Nominal Tutar (TL)]]-Table5402945[[#This Row],[Yurtiçi Satışı Gerçekleşen Nominal Tutar (TL)]] -> 2,288,993,000.00
A168: 166 | B168: Ak Finansal Kiralama A.Ş. | C168: Finansal Kurum | D168: Borçlanma Aracı | E168: 2017-09-08 | F168: - | G168: 2017-10-13 | H168: Tahsisli/Nitelikli Yatırımcı | I168: 1,000,000,000.00 | J168: =Table5402945[[#This Row],[Yurtiçi İhraç Limiti Nominal Tutar (TL)]]/3.6544 -> 273,642,732.05 | K168: 333,350,000.00 | L168: =Table5402945[[#This Row],[Yurtiçi İhraç Limiti Nominal Tutar (TL)]]-Table5402945[[#This Row],[Yurtiçi Satışı Gerçekleşen Nominal Tutar (TL)]] -> 666,650,000.00
A169: 167 | B169: Türkiye İş Bankası A.Ş. | C169: Banka | D169: Borçlanma Aracı | E169: 2017-09-13 | F169: - | G169: 2017-10-13 | H169: Halka Arz/Tahsisli/Nitelikli Yatırımcı | I169: 20,000,000,000.00 | J169: =Table5402945[[#This Row],[Yurtiçi İhraç Limiti Nominal Tutar (TL)]]/3.6544 -> 5,472,854,640.98 | K169: 2,014,141,241.00 | L169: =Table5402945[[#This Row],[Yurtiçi İhraç Limiti Nominal Tutar (TL)]]-Table5402945[[#This Row],[Yurtiçi Satışı Gerçekleşen Nominal Tutar (TL)]] -> 17,985,858,759.00
A170: 168 | B170: Ünlü Menkul Değerler A.Ş. | C170: Finansal Kurum | D170: Borçlanma Aracı | E170: 2017-09-26 | F170: - | G170: 2017-10-13 | H170: Nitelikli Yatırımcı | I170: 100,000,000.00 | J170: =Table5402945[[#This Row],[Yurtiçi İhraç Limiti Nominal Tutar (TL)]]/3.6544 -> 27,364,273.20 | K170: 98,318,080.00 | L170: =Table5402945[[#This Row],[Yurtiçi İhraç Limiti Nominal Tutar (TL)]]-Table5402945[[#This Row],[Yurtiçi Satışı Gerçekleşen Nominal Tutar (TL)]] -> 1,681,920.00
A171: 169 | B171: Yapı Kredi Yatırım Menkul Değerler A.Ş. | C171: Finansal Kurum | D171: Borçlanma Aracı | E171: 2017-09-26 | F171: - | G171: 2017-10-13 | H171: Nitelikli Yatırımcı | I171: 500,000,000.00 | J171: =Table5402945[[#This Row],[Yurtiçi İhraç Limiti Nominal Tutar (TL)]]/3.6544 -> 136,821,366.02 | K171: 499,393,963.00 | L171: =Table5402945[[#This Row],[Yurtiçi İhraç Limiti Nominal Tutar (TL)]]-Table5402945[[#This Row],[Yurtiçi Satışı Gerçekleşen Nominal Tutar (TL)]] -> 606,037.00
A172: 170 | B172: Aktif Yatırım Bankası A.Ş | C172: Banka | D172: Borçlanma Aracı | E172: 2017-09-27 | F172: - | G172: 2017-10-13 | H172: Halka Arz/Tahsisli/Nitelikli Yatırımcı | I172: 1,400,000,000.00 | J172: =Table5402945[[#This Row],[Yurtiçi İhraç Limiti Nominal Tutar (TL)]]/3.6544 -> 383,099,824.87 | K172: 1,205,000,000.00 | L172: =Table5402945[[#This Row],[Yurtiçi İhraç Limiti Nominal Tutar (TL)]]-Table5402945[[#This Row],[Yurtiçi Satışı Gerçekleşen Nominal Tutar (TL)]] -> 195,000,000.00
A173: 171 | B173: Aktif Yatırım Bankası A.Ş | C173: Banka | D173: Borçlanma Aracı | E173: 2017-09-27 | F173: - | G173: 2017-10-13 | H173: Yurt Dışı | M173: 200,000,000.00 | N173: Türk Lirası | O173: 0.00 | P173: =Table5402945[[#This Row],[Yurtdışı İhraç Limiti Nominal Tutar]]-Table5402945[[#This Row],[Yurtdışı Tertip İhraç Belgesi Verilen Nominal Tutar]] -> 200,000,000.00 | Q173: 0.00
A174: 172 | B174: Türk Ekonomi Bankası A.Ş. | C174: Banka | D174: Borçlanma Aracı | E174: 2017-10-03 | F174: - | G174: 2017-10-13 | H174: Yurt Dışı | M174: 600,000,000.00 | N174: ABD Doları | O174: 0.00 | P174: =Table5402945[[#This Row],[Yurtdışı İhraç Limiti Nominal Tutar]]-Table5402945[[#This Row],[Yurtdışı Tertip İhraç Belgesi Verilen Nominal Tutar]] -> 600,000,000.00 | Q174: 0.00
A175: 173 | B175: Aktif Bank Sukuk Varlık Kiralama A.Ş. | C175: Finansal Kurum | D175: Kira Sertifikası | E175: 2017-09-22 | F175: - | G175: 2017-10-13 | H175: Nitelikli Yatırımcı | I175: 200,000,000.00 | J175: =Table5402945[[#This Row],[Yurtiçi İhraç Limiti Nominal Tutar (TL)]]/3.6544 -> 54,728,546.41 | K175: 75,000,000.00 | L175: =Table5402945[[#This Row],[Yurtiçi İhraç Limiti Nominal Tutar (TL)]]-Table5402945[[#This Row],[Yurtiçi Satışı Gerçekleşen Nominal Tutar (TL)]] -> 125,000,000.00
A176: 174 | B176: Alternatif Finansal Kiralama A.Ş | C176: Finansal Kurum | D176: Borçlanma Aracı | E176: 2017-09-05 | F176: - | G176: 2017-10-20 | H176: Nitelikli Yatırımcı | I176: 567,304,000.00 | J176: =Table5402945[[#This Row],[Yurtiçi İhraç Limiti Nominal Tutar (TL)]]/3.6661 -> 154,743,187.58 | K176: 134,826,000.00 | L176: =Table5402945[[#This Row],[Yurtiçi İhraç Limiti Nominal Tutar (TL)]]-Table5402945[[#This Row],[Yurtiçi Satışı Gerçekleşen Nominal Tutar (TL)]] -> 432,478,000.00
A177: 175 | B177: İş Yatırım Menkul Değerler A.Ş. | C177: Finansal Kurum | D177: Varant | E177: 2017-09-11 | F177: - | G177: 2017-10-20 | H177: Halka Arz | I177: 300,000,000.00 | J177: =Table5402945[[#This Row],[Yurtiçi İhraç Limiti Nominal Tutar (TL)]]/3.6661 -> 81,830,828.40 | K177: 66,740,000.00 | L177: =Table5402945[[#This Row],[Yurtiçi İhraç Limiti Nominal Tutar (TL)]]-Table5402945[[#This Row],[Yurtiçi Satışı Gerçekleşen Nominal Tutar (TL)]] -> 233,260,000.00
A178: 176 | B178: Halk Yatırım Menkul Değerler A.Ş. | C178: Finansal Kurum | D178: Borçlanma Aracı | E178: 2017-09-29 | F178: - | G178: 2017-10-20 | H178: Nitelikli Yatırımcı | I178: 408,000,000.00 | J178: =Table5402945[[#This Row],[Yurtiçi İhraç Limiti Nominal Tutar (TL)]]/3.6661 -> 111,289,926.63 | K178: 170,000,000.00 | L178: =Table5402945[[#This Row],[Yurtiçi İhraç Limiti Nominal Tutar (TL)]]-Table5402945[[#This Row],[Yurtiçi Satışı Gerçekleşen Nominal Tutar (TL)]] -> 238,000,000.00
A179: 177 | B179: Kent Faktoring A.Ş. | C179: Finansal Kurum | D179: Borçlanma Aracı | E179: 2017-10-04 | F179: - | G179: 2017-10-20 | H179: Nitelikli Yatırımcı | I179: 50,000,000.00 | J179: =Table5402945[[#This Row],[Yurtiçi İhraç Limiti Nominal Tutar (TL)]]/3.6661 -> 13,638,471.40 | K179: 9,000,000.00 | L179: =Table5402945[[#This Row],[Yurtiçi İhraç Limiti Nominal Tutar (TL)]]-Table5402945[[#This Row],[Yurtiçi Satışı Gerçekleşen Nominal Tutar (TL)]] -> 41,000,000.00
A180: 178 | B180: Boyner Perakende ve Tekstil Yatırımları A.Ş. | C180: Reel Sektör | D180: Borçlanma Aracı | E180: 2017-10-04 | F180: - | G180: 2017-10-20 | H180: Tahsisli/Nitelikli Yatırımcı | I180: 210,000,000.00 | J180: =Table5402945[[#This Row],[Yurtiçi İhraç Limiti Nominal Tutar (TL)]]/3.6661 -> 57,281,579.88 | K180: 0.00 | L180: =Table5402945[[#This Row],[Yurtiçi İhraç Limiti Nominal Tutar (TL)]]-Table5402945[[#This Row],[Yurtiçi Satışı Gerçekleşen Nominal Tutar (TL)]] -> 210,000,000.00
A181: 179 | B181: Yapı ve Kredi Bankası A.Ş. | C181: Banka | D181: İTMK | E181: 2017-06-13 | F181: - | G181: 2017-10-20 | H181: Yurt Dışı | M181: 1,000,000,000.00 | N181: Avro | O181: 0.00 | P181: =Table5402945[[#This Row],[Yurtdışı İhraç Limiti Nominal Tutar]]-Table5402945[[#This Row],[Yurtdışı Tertip İhraç Belgesi Verilen Nominal Tutar]] -> 1,000,000,000.00 | Q181: 0.00
A182: 180 | B182: Fibabanka A.Ş. | C182: Banka | D182: VTMK | E182: 2017-05-31 | F182: - | G182: 2017-11-03 | H182: Yurt Dışı | M182: 1,200,000,000.00 | N182: Türk Lirası | O182: 0.00 | P182: =Table5402945[[#This Row],[Yurtdışı İhraç Limiti Nominal Tutar]]-Table5402945[[#This Row],[Yurtdışı Tertip İhraç Belgesi Verilen Nominal Tutar]] -> 1,200,000,000.00 | Q182: 0.00
A183: 181 | B183: Çalık Holding A.Ş. | C183: Reel Sektör | D183: Borçlanma Aracı | E183: 2017-09-13 | F183: - | G183: 2017-11-03 | H183: Yurt Dışı | M183: 50,000,000.00 | N183: Avro | O183: 0.00 | P183: =Table5402945[[#This Row],[Yurtdışı İhraç Limiti Nominal Tutar]]-Table5402945[[#This Row],[Yurtdışı Tertip İhraç Belgesi Verilen Nominal Tutar]] -> 50,000,000.00 | Q183: 0.00
A184: 182 | B184: Akbank T.A.Ş. | C184: Banka | D184: Borçlanma Aracı | E184: 2017-09-15 | F184: - | G184: 2017-11-03 | H184: Tahsisli/Nitelikli Yatırımcı | I184: 10,000,000,000.00 | J184: =Table5402945[[#This Row],[Yurtiçi İhraç Limiti Nominal Tutar (TL)]]/3.8272 -> 2,612,876,254.18 | K184: 3,033,278,971.00 | L184: =Table5402945[[#This Row],[Yurtiçi İhraç Limiti Nominal Tutar (TL)]]-Table5402945[[#This Row],[Yurtiçi Satışı Gerçekleşen Nominal Tutar (TL)]] -> 6,966,721,029.00
A185: 183 | B185: Akbank T.A.Ş. | C185: Banka | D185: Borçlanma Aracı | E185: 2017-09-15 | F185: - | G185: 2017-11-03 | H185: Nitelikli Yatırımcı | I185: 7,500,000,000.00 | J185: =Table5402945[[#This Row],[Yurtiçi İhraç Limiti Nominal Tutar (TL)]]/3.8272 -> 1,959,657,190.64 | K185: 0.00 | L185: =Table5402945[[#This Row],[Yurtiçi İhraç Limiti Nominal Tutar (TL)]]-Table5402945[[#This Row],[Yurtiçi Satışı Gerçekleşen Nominal Tutar (TL)]] -> 7,500,000,000.00
A186: 184 | B186: Şekerbank T.A.Ş. | C186: Banka | D186: Borçlanma Aracı | E186: 2017-09-15 | F186: - | G186: 2017-11-03 | H186: Yurt Dışı | M186: 300,000,000.00 | N186: ABD Doları | O186: 0.00 | P186: =Table5402945[[#This Row],[Yurtdışı İhraç Limiti Nominal Tutar]]-Table5402945[[#This Row],[Yurtdışı Tertip İhraç Belgesi Verilen Nominal Tutar]] -> 300,000,000.00 | Q186: 0.00
A187: 185 | B187: Başkent Elektrik Dağıtım A.Ş. | C187: Reel Sektör | D187: Borçlanma Aracı | E187: 2017-10-03 | F187: - | G187: 2017-11-03 | H187: Nitelikli Yatırımcı | I187: 1,000,000,000.00 | J187: =Table5402945[[#This Row],[Yurtiçi İhraç Limiti Nominal Tutar (TL)]]/3.8272 -> 261,287,625.42 | K187: 0.00 | L187: =Table5402945[[#This Row],[Yurtiçi İhraç Limiti Nominal Tutar (TL)]]-Table5402945[[#This Row],[Yurtiçi Satışı Gerçekleşen Nominal Tutar (TL)]] -> 1,000,000,000.00
A188: 186 | B188: Türk Ekonomi Bankası A.Ş. | C188: Banka | D188: Borçlanma Aracı | E188: 2017-10-03 | F188: - | G188: 2017-11-03 | H188: Halka Arz/Tahsisli/Nitelikli Yatırımcı | I188: 4,000,000,000.00 | J188: =Table5402945[[#This Row],[Yurtiçi İhraç Limiti Nominal Tutar (TL)]]/3.8272 -> 1,045,150,501.67 | K188: 877,878,511.00 | L188: =Table5402945[[#This Row],[Yurtiçi İhraç Limiti Nominal Tutar (TL)]]-Table5402945[[#This Row],[Yurtiçi Satışı Gerçekleşen Nominal Tutar (TL)]] -> 3,122,121,489.00
A189: 187 | B189: İş Yatırım Menkul Değerler A.Ş. | C189: Finansal Kurum | D189: Borçlanma Aracı | E189: 2017-10-09 | F189: - | G189: 2017-11-03 | H189: Tahsisli/Nitelikli Yatırımcı | I189: 3,500,000,000.00 | J189: =Table5402945[[#This Row],[Yurtiçi İhraç Limiti Nominal Tutar (TL)]]/3.8272 -> 914,506,688.96 | K189: 792,440,000.00 | L189: =Table5402945[[#This Row],[Yurtiçi İhraç Limiti Nominal Tutar (TL)]]-Table5402945[[#This Row],[Yurtiçi Satışı Gerçekleşen Nominal Tutar (TL)]] -> 2,707,560,000.00
A190: 188 | B190: Şekerbank T.A.Ş. | C190: Banka | D190: Borçlanma Aracı | E190: 2017-10-11 | F190: - | G190: 2017-11-03 | H190: Tahsisli/Nitelikli Yatırımcı | I190: 1,500,000,000.00 | J190: =Table5402945[[#This Row],[Yurtiçi İhraç Limiti Nominal Tutar (TL)]]/3.8272 -> 391,931,438.13 | K190: 0.00 | L190: =Table5402945[[#This Row],[Yurtiçi İhraç Limiti Nominal Tutar (TL)]]-Table5402945[[#This Row],[Yurtiçi Satışı Gerçekleşen Nominal Tutar (TL)]] -> 1,500,000,000.00
A191: 189 | B191: Finansbank A.Ş. | C191: Banka | D191: Borçlanma Aracı | E191: 2017-10-12 | F191: - | G191: 2017-11-03 | H191: Yurt Dışı | M191: 850,000,000.00 | N191: ABD Doları | O191: 0.00 | P191: =Table5402945[[#This Row],[Yurtdışı İhraç Limiti Nominal Tutar]]-Table5402945[[#This Row],[Yurtdışı Tertip İhraç Belgesi Verilen Nominal Tutar]] -> 850,000,000.00 | Q191: 0.00
A192: 190 | B192: Deniz Finansal Kiralama A.Ş. | C192: Finansal Kurum | D192: Borçlanma Aracı | E192: 2017-10-13 | F192: - | G192: 2017-11-03 | H192: Nitelikli Yatırımcı | I192: 2,790,804,000.00 | J192: =Table5402945[[#This Row],[Yurtiçi İhraç Limiti Nominal Tutar (TL)]]/3.8272 -> 729,202,550.17 | K192: 185,000,000.00 | L192: =Table5402945[[#This Row],[Yurtiçi İhraç Limiti Nominal Tutar (TL)]]-Table5402945[[#This Row],[Yurtiçi Satışı Gerçekleşen Nominal Tutar (TL)]] -> 2,605,804,000.00
A193: 191 | B193: Lider Faktoring A.Ş. | C193: Finansal Kurum | D193: Borçlanma Aracı | E193: 2017-10-13 | F193: - | G193: 2017-11-03 | H193: Tahsisli/Nitelikli Yatırımcı | I193: 200,000,000.00 | J193: =Table5402945[[#This Row],[Yurtiçi İhraç Limiti Nominal Tutar (TL)]]/3.8272 -> 52,257,525.08 | K193: 60,000,000.00 | L193: =Table5402945[[#This Row],[Yurtiçi İhraç Limiti Nominal Tutar (TL)]]-Table5402945[[#This Row],[Yurtiçi Satışı Gerçekleşen Nominal Tutar (TL)]] -> 140,000,000.00
A194: 192 | B194: Arena Faktoring A.Ş. | C194: Finansal Kurum | D194: Borçlanma Aracı | E194: 2017-10-16 | F194: - | G194: 2017-11-03 | H194: Nitelikli Yatırımcı | I194: 32,177,005.00 | J194: =Table5402945[[#This Row],[Yurtiçi İhraç Limiti Nominal Tutar (TL)]]/3.8272 -> 8,407,453.23 | K194: 10,000,000.00 | L194: =Table5402945[[#This Row],[Yurtiçi İhraç Limiti Nominal Tutar (TL)]]-Table5402945[[#This Row],[Yurtiçi Satışı Gerçekleşen Nominal Tutar (TL)]] -> 22,177,005.00
A195: 193 | B195: Oyak Yatırım Menkul Değerler A.Ş. | C195: Finansal Kurum | D195: Borçlanma Aracı | E195: 2017-10-17 | F195: - | G195: 2017-11-03 | H195: Nitelikli Yatırımcı | I195: 114,000,000.00 | J195: =Table5402945[[#This Row],[Yurtiçi İhraç Limiti Nominal Tutar (TL)]]/3.8272 -> 29,786,789.30 | K195: 57,000,000.00 | L195: =Table5402945[[#This Row],[Yurtiçi İhraç Limiti Nominal Tutar (TL)]]-Table5402945[[#This Row],[Yurtiçi Satışı Gerçekleşen Nominal Tutar (TL)]] -> 57,000,000.00
A196: 194 | B196: Analiz Faktoring A.Ş. | C196: Finansal Kurum | D196: Borçlanma Aracı | E196: 2017-10-17 | F196: - | G196: 2017-11-03 | H196: Nitelikli Yatırımcı | I196: 130,000,000.00 | J196: =Table5402945[[#This Row],[Yurtiçi İhraç Limiti Nominal Tutar (TL)]]/3.8272 -> 33,967,391.30 | K196: 30,000,000.00 | L196: =Table5402945[[#This Row],[Yurtiçi İhraç Limiti Nominal Tutar (TL)]]-Table5402945[[#This Row],[Yurtiçi Satışı Gerçekleşen Nominal Tutar (TL)]] -> 100,000,000.00
A197: 195 | B197: Opet Petrolcülük A.Ş. | C197: Reel Sektör | D197: Borçlanma Aracı | E197: 2017-10-17 | F197: - | G197: 2017-11-03 | H197: Nitelikli Yatırımcı | I197: 500,000,000.00 | J197: =Table5402945[[#This Row],[Yurtiçi İhraç Limiti Nominal Tutar (TL)]]/3.8272 -> 130,643,812.71 | K197: 0.00 | L197: =Table5402945[[#This Row],[Yurtiçi İhraç Limiti Nominal Tutar (TL)]]-Table5402945[[#This Row],[Yurtiçi Satışı Gerçekleşen Nominal Tutar (TL)]] -> 500,000,000.00
A198: 196 | B198: Vakıf Faktoring A.Ş. | C198: Finansal Kurum | D198: Borçlanma Aracı | E198: 2017-10-18 | F198: - | G198: 2017-11-03 | H198: Nitelikli Yatırımcı | I198: 300,000,000.00 | J198: =Table5402945[[#This Row],[Yurtiçi İhraç Limiti Nominal Tutar (TL)]]/3.8272 -> 78,386,287.63 | K198: 300,000,000.00 | L198: =Table5402945[[#This Row],[Yurtiçi İhraç Limiti Nominal Tutar (TL)]]-Table5402945[[#This Row],[Yurtiçi Satışı Gerçekleşen Nominal Tutar (TL)]] -> 0.00
A199: 197 | B199: Otokoç Otomotiv Ticaret ve Sanayi A.Ş. | C199: Reel Sektör | D199: Borçlanma Aracı | E199: 2017-10-20 | F199: - | G199: 2017-11-03 | H199: Nitelikli Yatırımcı | I199: 300,000,000.00 | J199: =Table5402945[[#This Row],[Yurtiçi İhraç Limiti Nominal Tutar (TL)]]/3.8272 -> 78,386,287.63 | K199: 0.00 | L199: =Table5402945[[#This Row],[Yurtiçi İhraç Limiti Nominal Tutar (TL)]]-Table5402945[[#This Row],[Yurtiçi Satışı Gerçekleşen Nominal Tutar (TL)]] -> 300,000,000.00
A200: 198 | B200: Atılım Faktoring A.Ş | C200: Finansal Kurum | D200: Borçlanma Aracı | E200: 2017-10-24 | F200: - | G200: 2017-11-03 | H200: Nitelikli Yatırımcı | I200: 46,000,000.00 | J200: =Table5402945[[#This Row],[Yurtiçi İhraç Limiti Nominal Tutar (TL)]]/3.8272 -> 12,019,230.77 | K200: 0.00 | L200: =Table5402945[[#This Row],[Yurtiçi İhraç Limiti Nominal Tutar (TL)]]-Table5402945[[#This Row],[Yurtiçi Satışı Gerçekleşen Nominal Tutar (TL)]] -> 46,000,000.00
... 164 more rows
